{"text_format":"1","workbook":"xlsx","n_sheets":4,"sheets":["Help","Entities","Model","Reference Data"],"not_rendered":{"charts":0,"images":1,"macros":0,"external_links":1,"defined_names":10,"comments":2,"pivot_tables":0},"unopened":[],"bounds":{"document_bytes":16777216,"sheet_cells":100000,"rows_first":2000,"rows_last":500,"rows_between":2000,"halvings":0,"cell_chars":16384,"cell_head_chars":4096},"cells_cut":0,"cells_raw":0,"read":"whole","date_system":"1900"}

{"sheet":"Help","index":0,"n_rows":17,"n_cols":4,"rows_kept":17,"cut":false,"hidden":false,"merged":[]}
[]
[]
[null,"These are all read only"]
["TEMPLATE NAME","RS EXCEL"]
["TEMPLATE VERSION","V1.0"]
["MULTI VALUES DELIMITER","||"]
["CONTEXT PATH DELIMITER",">>"]
["LEGENDS","INHERITED VALUE(S)"]
[null,"GOVERNANCE ERROR(S)"]
[]
[]
["Type"]
["SYSTEM/RELATIONSHIPS","COLLECTION","MANDATORY","MANDATORY COLLECTION"]
["GLOBAL","COLLECTION","MANDATORY","MANDATORY COLLECTION"]
["GLOBAL ENHANCER","COLLECTION","MANDATORY","MANDATORY COLLECTION"]
["CONTEXT","COLLECTION","MANDATORY","MANDATORY COLLECTION"]
["CONTEXT ENHANCER","COLLECTION","MANDATORY","MANDATORY COLLECTION"]

{"sheet":"Entities","index":1,"n_rows":77,"n_cols":30,"rows_kept":77,"cut":false,"hidden":false,"merged":[[0,0,0,3],[0,4,0,6],[0,7,0,8],[0,27,0,29]]}
["Matching Attribute(s)",null,null,null,"Costing & Financials",null,null,"Item Definition",null,null,null,null,"Effective: 01/01/2023","Effective: 07/01/2022","Effective : 01/01/2022",null,null,null,null,null,null,null,null,null,null,null,null,"Costing & Financials"]
["Item Number","Item Description","Primary Supplier","Supplier Item","2023 NET Pricing","Future Purchasing List Price Per Unit Effective Date","MSRP","Item Type","Merchandise Manager",null,null,null,"2023 MSRP","2022 Q3 MSRP","2022 MSRP",null,null,null,null,null,null,null,null,null,null,null,null,"Future Purchasing List Price Per Unit","Future Purchasing List Price Per Unit Effective Date","MSRP"]
["1589698","LEXI EXIT DEVICE MORTISE WITH INTEGRATED DEADBOLT AND LOCKDOWN FUNCTION","SECURITECH GROUP INC","71T46-GLD4-630-LHR",{"$f":"G3*0.5","v":2052.5},"2023-01-01",{"$f":"M3","v":4105},"DROPSHIP","KIM BUNTIN",null,null,null,4105,3780,3780,null,null,null,null,null,null,null,null,null,null,null,null,464.25,"2021-07-06",928.5]
["1590056","LEXI EXIT DEVICE MORTISE WITH INTEGRATED DEADBOLT AND LOCKDOWN FUNCTION RHR","SECURITECH GROUP INC","71T46-GLD4-630-RHR",{"$f":"G4*0.5","v":2052.5},"2023-01-01",{"$f":"M4","v":4105},"DROPSHIP","KIM BUNTIN",null,null,null,4105,3780,3780,null,null,null,null,null,null,null,null,null,null,null,null,464.25,"2021-07-06",928.5]
["2051257","SECURITECH AYZRE HANDS FREE DOOR OPENERS - POWDER COATED BLACK - ANTI MICROBIAL - LEFT HINGE","SECURITECH GROUP INC","AYL-C-676AM",{"$f":"G5*0.5","v":40},"2023-01-01",{"$f":"M5","v":80},"DROPSHIP","KIM BUNTIN",null,null,null,80,70,70,null,null,null,null,null,null,null,null,null,null,null,null,686.5,"2021-07-06",1320]
["2051255","SECURITECH AYZRE HANDS FREE DOOR OPENERS - POWDER COATED BLACK - ANTI MICROBIAL - SET OF 2","SECURITECH GROUP INC","AYP-C-676AM",80,"2023-01-01",160,"DROPSHIP","KIM BUNTIN",null,null,null,160,140,140,null,null,null,null,null,null,null,null,null,null,null,null,464.25,"2021-07-06",928.5]
["2051256","SECURITECH AYZRE HANDS FREE DOOR OPENERS - POWDER COATED BLACK - ANTI MICROBIAL - RIGHT HINGE","SECURITECH GROUP INC","AYR-C-676AM",40,"2023-01-01",80,"DROPSHIP","KIM BUNTIN",null,null,null,80,70,70,null,null,null,null,null,null,null,null,null,null,null,null,199.25,"2021-07-06",383]
["2002193","QUICKBOLT POSITION SIGNAL SWITCH","SECURITECH GROUP INC","-BPS",72.5,"2023-01-01",145,"DROPSHIP","KIM BUNTIN",null,null,null,145,130,120,null,null,null,null,null,null,null,null,null,null,null,null,464.25,"2021-07-06",928.5]
["1585900","LEXI DOOR LOOP 18 IN","SECURITECH GROUP INC","DC1-18-A",52.5,"2023-01-01",105,"DROPSHIP","KIM BUNTIN",null,null,null,105,99,99,null,null,null,null,null,null,null,null,null,null,null,null,464.25,"2021-07-06",928.5]
["1589696","LEXI CORD 18 IN POWER TRANSFER AND LED ENCLOSURE","SECURITECH GROUP INC","DCLD-18-A",202.5,"2023-01-01",405,"DROPSHIP","KIM BUNTIN",null,null,null,405,372,372,null,null,null,null,null,null,null,null,null,null,null,null,464.25,"2021-07-06",928.5]
["1585903","LEXI EXIT DEVICE CONTROL TRIM FOR VON DUPRIN 99 SERIES - LHR","SECURITECH GROUP INC","EDT-G20-D13-V1A1-630-LHR",757.5,"2023-01-01",1515,"DROPSHIP","KIM BUNTIN",null,null,null,1515,1390,1390,null,null,null,null,null,null,null,null,null,null,null,null,62.5,"2021-07-06",120]
["1585902","LEXI EXIT DEVICE CONTROL TRIM FOR VON DUPRIN 99 SERIES - RHR","SECURITECH GROUP INC","EDT-G20-D13-V1A1-630-RHR",757.5,"2023-01-01",1515,"DROPSHIP","KIM BUNTIN",null,null,null,1515,1390,1390,null,null,null,null,null,null,null,null,null,null,null,null,228.75,"2021-07-06",440]
["1585905","LEXI EMERGENCY LOCKDOWN STATION","SECURITECH GROUP INC","ELDS-1",202.5,"2023-01-01",405,"DROPSHIP","KIM BUNTIN",null,null,null,405,369,369,null,null,null,null,null,null,null,null,null,null,null,null,590.25,"2021-07-06",1135]
["1589697","LEXI LOCKDOWN STATION DESK MOUNTED EMERGENCY","SECURITECH GROUP INC","ELDS-DM1",260,"2023-01-01",520,"DROPSHIP","KIM BUNTIN",null,null,null,520,478,478,null,null,null,null,null,null,null,null,null,null,null,null,464.25,"2021-07-06",928.5]
["1585906","LEXI SURFACE MOUNT ENCLOSURE FOR ELDS","SECURITECH GROUP INC","ELDS-ENC1",60,"2023-01-01",120,"DROPSHIP","KIM BUNTIN",null,null,null,120,108,108,null,null,null,null,null,null,null,null,null,null,null,null,464.25,"2021-07-06",928.5]
["1545357","COMBINATION INTERCHANGEABLE CORE","SECURITECH GROUP INC","GIC-COR-RC1",40,"2023-01-01",80,"DROPSHIP","KIM BUNTIN",null,null,null,80,75,75,null,null,null,null,null,null,null,null,null,null,null,null,786.25,"2021-07-06",1260]
["1545356","CYLINDER INTERCHANGEABLE CORE MORTISE -CONSTRUCTION CYLINDER","SECURITECH GROUP INC","GIC-MOR-RC1",80,"2023-01-01",160,"DROPSHIP","KIM BUNTIN",null,null,null,160,150,150,null,null,null,null,null,null,null,null,null,null,null,null,406.75,"2021-07-06",782]
["1545355","CYLINDER MORTISE STANDARD","SECURITECH GROUP INC","GIC-MOR-SC1",25,"2023-01-01",50,"DROPSHIP","KIM BUNTIN",null,null,null,50,45,45,null,null,null,null,null,null,null,null,null,null,null,null,590.25,"2021-07-06",1135]
["1571554","DRESS PLATE FOR MORTISE LOCK","SECURITECH GROUP INC","GIL DP SET",40,"2023-01-01",80,"LIMITED USE ITEM","KIM BUNTIN",null,null,null,80,70,60,null,null,null,null,null,null,null,null,null,null,null,null,464.25,"2021-07-06",928.5]
["1545347","QAL INSTANT DEADBOLT CYLINDRICAL LH TYPE 1","SECURITECH GROUP INC","GIL-C1-DCR-CBO-630-LH",560,"2023-01-01",1120,"DROPSHIP","KIM BUNTIN",null,null,null,1120,1030,985,null,null,null,null,null,null,null,null,null,null,null,null,2144,"2021-07-06",3436]
["1545349","QAL INSTANT DEADBOLT CYLINDRICAL LHR TYPE 1","SECURITECH GROUP INC","GIL-C1-DCR-CBO-630-LHR",560,"2023-01-01",1120,"DROPSHIP","KIM BUNTIN",null,null,null,1120,1030,985,null,null,null,null,null,null,null,null,null,null,null,null,590.25,"2021-07-06",1135]
["1545348","QAL INSTANT DEADBOLT CYLINDRICAL RH TYPE 1","SECURITECH GROUP INC","GIL-C1-DCR-CBO-630-RH",560,"2023-01-01",1120,"DROPSHIP","KIM BUNTIN",null,null,null,1120,1030,985,null,null,null,null,null,null,null,null,null,null,null,null,94.25,"2021-07-06",181.44]
["1545350","QAL INSTANT DEADBOLT CYLINDRICAL RHR TYPE 1","SECURITECH GROUP INC","GIL-C1-DCR-CBO-630-RHR",560,"2023-01-01",1120,"DROPSHIP","KIM BUNTIN",null,null,null,1120,1030,985,null,null,null,null,null,null,null,null,null,null,null,null,174.25,"2021-07-06",335]
["1565681","QAL INSTANT DEADBOLT CYLINDRICAL LH TYPE 1DCS","SECURITECH GROUP INC","GIL-C1-DCS-CBO-630-LH",560,"2023-01-01",1120,"DROPSHIP","KIM BUNTIN",null,null,null,1120,1030,985,null,null,null,null,null,null,null,null,null,null,null,null,175.75,"2021-07-06",338]
["1565683","QAL INSTANT DEADBOLT CYLINDRICAL LHR TYPE 1DCS","SECURITECH GROUP INC","GIL-C1-DCS-CBO-630-LHR",560,"2023-01-01",1120,"DROPSHIP","KIM BUNTIN",null,null,null,1120,1030,985,null,null,null,null,null,null,null,null,null,null,null,null,464.25,"2021-07-06",928.5]
["1565682","QAL INSTANT DEADBOLT CYLINDRICAL RH TYPE 1DCS","SECURITECH GROUP INC","GIL-C1-DCS-CBO-630-RH",560,"2023-01-01",1120,"DROPSHIP","KIM BUNTIN",null,null,null,1120,1030,985,null,null,null,null,null,null,null,null,null,null,null,null,686.5,"2021-07-06",1320]
["1565684","QAL INSTANT DEADBOLT CYLINDRICAL RHR TYPE 1DCS","SECURITECH GROUP INC","GIL-C1-DCS-CBO-630-RHR",560,"2023-01-01",1120,"DROPSHIP","KIM BUNTIN",null,null,null,1120,1030,985,null,null,null,null,null,null,null,null,null,null,null,null,46.75,"2021-07-06",90]
["1565677","QAL INSTANT DEADBOLT CYLINDRICAL LH TYPE 1EOR","SECURITECH GROUP INC","GIL-C1-EOR-CBO-630-LH",560,"2023-01-01",1120,"DROPSHIP","KIM BUNTIN",null,null,null,1120,1030,985,null,null,null,null,null,null,null,null,null,null,null,null,228.75,"2021-07-06",440]
["1565679","QAL INSTANT DEADBOLT CYLINDRICAL LHR TYPE 1EOR","SECURITECH GROUP INC","GIL-C1-EOR-CBO-630-LHR",560,"2023-01-01",1120,"DROPSHIP","KIM BUNTIN",null,null,null,1120,1030,985,null,null,null,null,null,null,null,null,null,null,null,null,228.75,"2021-07-06",440]
["1565678","QAL INSTANT DEADBOLT CYLINDRICAL RH TYPE 1EOR","SECURITECH GROUP INC","GIL-C1-EOR-CBO-630-RH",560,"2023-01-01",1120,"DROPSHIP","KIM BUNTIN",null,null,null,1120,1030,985,null,null,null,null,null,null,null,null,null,null,null,null,10,"2021-07-06",19]
["1565680","QAL  INSTANT DEADBOLT CYLINDRICAL RHR TYPE 1EOR","SECURITECH GROUP INC","GIL-C1-EOR-CBO-630-RHR",560,"2023-01-01",1120,"DROPSHIP","KIM BUNTIN",null,null,null,1120,1030,985,null,null,null,null,null,null,null,null,null,null,null,null,52,"2021-07-06",100]
["1565685","QAL INSTANT DEADBOLT CYLINDRICAL LH TYPE 1EOS","SECURITECH GROUP INC","GIL-C1-EOS-CBO-630-LH",560,"2023-01-01",1120,"DROPSHIP","KIM BUNTIN",null,null,null,1120,1030,985,null,null,null,null,null,null,null,null,null,null,null,null,0,"2021-07-06",0]
["1565723","QAL INSTANT DEADBOLT CYLINDRICAL LHR TYPE 1EOS","SECURITECH GROUP INC","GIL-C1-EOS-CBO-630-LHR",560,"2023-01-01",1120,"DROPSHIP","KIM BUNTIN",null,null,null,1120,1030,985,null,null,null,null,null,null,null,null,null,null,null,null,11227.75,"2021-07-06",10796]
["1565722","QAL INSTANT DEADBOLT CYLINDRICAL RH TYPE 1EOS","SECURITECH GROUP INC","GIL-C1-EOS-CBO-630-RH",560,"2023-01-01",1120,"DROPSHIP","KIM BUNTIN",null,null,null,1120,1030,985,null,null,null,null,null,null,null,null,null,null,null,null,225.75,"2021-07-06",434]
["1565724","QAL INSTANT DEADBOLT CYLINDRICAL RHR TYPE 1EOS","SECURITECH GROUP INC","GIL-C1-EOS-CBO-630-RHR",560,"2023-01-01",1120,"DROPSHIP","KIM BUNTIN",null,null,null,1120,1030,985,null,null,null,null,null,null,null,null,null,null,null,null,55.75,"2021-07-06",107]
["1545343","QAL INSTANT DEADBOLT MORTISE - LH TYPE 1","SECURITECH GROUP INC","GIL-M1-DC-CBO-630-LH",560,"2023-01-01",1120,"DROPSHIP","KIM BUNTIN",null,null,null,1120,1030,985,null,null,null,null,null,null,null,null,null,null,null,null,2144,"2021-07-06",3436]
["1545345","QAL INSTANT DEADBOLT MORTISE LHR TYPE 1","SECURITECH GROUP INC","GIL-M1-DC-CBO-630-LHR",560,"2023-01-01",1120,"DROPSHIP","KIM BUNTIN",null,null,null,1120,1030,985,null,null,null,null,null,null,null,null,null,null,null,null,51,"2021-07-06",98]
["1545344","QAL INSTANT DEADBOLT MORTISE RH TYPE 1","SECURITECH GROUP INC","GIL-M1-DC-CBO-630-RH",560,"2023-01-01",1120,"DROPSHIP","KIM BUNTIN",null,null,null,1120,1030,985,null,null,null,null,null,null,null,null,null,null,null,null,16.75,"2021-07-06",32]
["1545346","QAL INSTANT DEADBOLT MORTISE RHR TYPE 1","SECURITECH GROUP INC","GIL-M1-DC-CBO-630-RHR",560,"2023-01-01",1120,"DROPSHIP","KIM BUNTIN",null,null,null,1120,1030,985,null,null,null,null,null,null,null,null,null,null,null,null,33.75,"2021-07-06",65]
["1565669","QAL INSTANT DEADBOLT MORTISE LH TYPE 1EO","SECURITECH GROUP INC","GIL-M1-EO-CBO-630-LH",560,"2023-01-01",1120,"DROPSHIP","KIM BUNTIN",null,null,null,1120,1030,985,null,null,null,null,null,null,null,null,null,null,null,null,55,"2021-07-06",100]
["1565671","QAL INSTANT DEADBOLT MORTISE LHR TYPE 1EO","SECURITECH GROUP INC","GIL-M1-EO-CBO-630-LHR",560,"2023-01-01",1120,"DROPSHIP","KIM BUNTIN",null,null,null,1120,1030,985,null,null,null,null,null,null,null,null,null,null,null,null,33.75,"2021-07-06",65]
["1565670","QAL INSTANT DEADBOLT MORTISE RH TYPE 1EO","SECURITECH GROUP INC","GIL-M1-EO-CBO-630-RH",560,"2023-01-01",1120,"DROPSHIP","KIM BUNTIN",null,null,null,1120,1030,985,null,null,null,null,null,null,null,null,null,null,null,null,686.5,"2021-07-06",1320]
["1565672","QAL  INSTANT DEADBOLT MORTISE RHR TYPE 1EO","SECURITECH GROUP INC","GIL-M1-EO-CBO-630-RHR",560,"2023-01-01",1120,"DROPSHIP","KIM BUNTIN",null,null,null,1120,1030,985,null,null,null,null,null,null,null,null,null,null,null,null,18.75,"2021-07-06",36]
["1545351","QAL INSTANT DEADBOLT MORTISE LH TYPE 2","SECURITECH GROUP INC","GIL-M2-DC-CBO-630-LH",560,"2023-01-01",1120,"DROPSHIP","KIM BUNTIN",null,null,null,1120,1030,985,null,null,null,null,null,null,null,null,null,null,null,null,117,"2021-07-06",225]
["1545353","QAL INSTANT DEADBOLT MORTISE LHR TYPE 2","SECURITECH GROUP INC","GIL-M2-DC-CBO-630-LHR",560,"2023-01-01",1120,"DROPSHIP","KIM BUNTIN",null,null,null,1120,1030,985,null,null,null,null,null,null,null,null,null,null,null,null,252.25,"2021-07-06",485]
["1545352","QAL INSTANT DEADBOLT MORTISE RH TYPE 2","SECURITECH GROUP INC","GIL-M2-DC-CBO-630-RH",560,"2023-01-01",1120,"DROPSHIP","KIM BUNTIN",null,null,null,1120,1030,985,null,null,null,null,null,null,null,null,null,null,null,null,464.25,"2021-07-06",928.5]
["1545354","QAL INSTANT DEADBOLT MORTISE RHR TYPE 2","SECURITECH GROUP INC","GIL-M2-DC-CBO-630-RHR",560,"2023-01-01",1120,"DROPSHIP","KIM BUNTIN",null,null,null,1120,1030,985,null,null,null,null,null,null,null,null,null,null,null,null,464.25,"2021-07-06",928.5]
["1565673","QAL INSTANT DEADBOLT MORTISE LH TYPE 2EO","SECURITECH GROUP INC","GIL-M2-EO-CBO-630-LH",560,"2023-01-01",1120,"DROPSHIP","KIM BUNTIN",null,null,null,1120,1030,985,null,null,null,null,null,null,null,null,null,null,null,null,464.25,"2021-07-06",928.5]
["1565675","QAL INSTANT DEADBOLT MORTISE LHR TYPE 2EO","SECURITECH GROUP INC","GIL-M2-EO-CBO-630-LHR",560,"2023-01-01",1120,"DROPSHIP","KIM BUNTIN",null,null,null,1120,1030,985,null,null,null,null,null,null,null,null,null,null,null,null,464.25,"2021-07-06",928.5]
["1565674","QAL INSTANT DEADBOLT MORTISE RH TYPE 2EO","SECURITECH GROUP INC","GIL-M2-EO-CBO-630-RH",560,"2023-01-01",1120,"DROPSHIP","KIM BUNTIN",null,null,null,1120,1030,985,null,null,null,null,null,null,null,null,null,null,null,null,464.25,"2021-07-06",928.5]
["1565676","QAL INSTANT DEADBOLT MORTISE RHR TYPE 2EO","SECURITECH GROUP INC","GIL-M2-EO-CBO-630-RHR",560,"2023-01-01",1120,"DROPSHIP","KIM BUNTIN",null,null,null,1120,1030,985,null,null,null,null,null,null,null,null,null,null,null,null,35.25,"2021-07-06",68]
["1545361","SECURIGUARD FILLER PLATE","SECURITECH GROUP INC","GSFP",42.5,"2023-01-01",85,"DROPSHIP","KIM BUNTIN",null,null,null,85,75,75,null,null,null,null,null,null,null,null,null,null,null,null,464.25,"2021-07-06",928.5]
["1545358","SECURIGUARD CYLINDER PROTECTOR WITH 2 KEYS","SECURITECH GROUP INC","GSG10",167.5,"2023-01-01",335,"DROPSHIP","KIM BUNTIN",null,null,null,335,305,305,null,null,null,null,null,null,null,null,null,null,null,null,464.25,"2021-07-06",928.5]
["1545360","SECURIGUARD ADDITIONAL KEY","SECURITECH GROUP INC","GSKEY",22.5,"2023-01-01",45,"DROPSHIP","KIM BUNTIN",null,null,null,45,40,40,null,null,null,null,null,null,null,null,null,null,null,null,464.25,"2021-07-06",928.5]
["1545363","LOCK TIME-OUT WITH 1 BOLT PROJECTION - LH","SECURITECH GROUP INC","GST11-LH",710,"2023-01-01",1420,"DROPSHIP","KIM BUNTIN",null,null,null,1420,1305,1245,null,null,null,null,null,null,null,null,null,null,null,null,33.75,"2021-07-06",65]
["2009331","LOCK TIME-OUT WITH 1 BOLT PROJECTION - LHR","SECURITECH GROUP INC","GST11-LHR",710,"2023-01-01",1420,"DROPSHIP","KIM BUNTIN",null,null,null,1420,1305,1245,null,null,null,null,null,null,null,null,null,null,null,null,464.25,"2021-07-06",928.5]
["2009330","LOCK TIME-OUT WITH 1 BOLT PROJECTION - RH","SECURITECH GROUP INC","GST11-RH",710,"2023-01-01",1420,"DROPSHIP","KIM BUNTIN",null,null,null,1420,1305,1245,null,null,null,null,null,null,null,null,null,null,null,null,464.25,"2021-07-06",928.5]
["2009329","LOCK TIME-OUT WITH 1 BOLT PROJECTION - RHR","SECURITECH GROUP INC","GST11-RHR",710,"2023-01-01",1420,"DROPSHIP","KIM BUNTIN",null,null,null,1420,1305,1245,null,null,null,null,null,null,null,null,null,null,null,null,464.25,"2021-07-06",928.5]
["1545362","LOCK TIME-OUT WITH 3 BOLT PROJECTION - LH","SECURITECH GROUP INC","GST33-LH",825,"2023-01-01",1650,"DROPSHIP","KIM BUNTIN",null,null,null,1650,1520,1450,null,null,null,null,null,null,null,null,null,null,null,null,464.25,"2021-07-06",928.5]
["2009328","LOCK TIME-OUT WITH 3 BOLT PROJECTION - LHR","SECURITECH GROUP INC","GST33-LHR",825,"2023-01-01",1650,"DROPSHIP","KIM BUNTIN",null,null,null,1650,1520,1450,null,null,null,null,null,null,null,null,null,null,null,null,70.75,"2021-07-06",136]
["2009327","LOCK TIME-OUT WITH 3 BOLT PROJECTION - RH","SECURITECH GROUP INC","GST33-RH",825,"2023-01-01",1650,"DROPSHIP","KIM BUNTIN",null,null,null,1650,1520,1450,null,null,null,null,null,null,null,null,null,null,null,null,464.25,"2021-07-06",928.5]
["2009326","LOCK TIME-OUT WITH 3 BOLT PROJECTION - RHR","SECURITECH GROUP INC","GST33-RHR",825,"2023-01-01",1650,"DROPSHIP","KIM BUNTIN",null,null,null,1650,1520,1450,null,null,null,null,null,null,null,null,null,null,null,null,464.25,"2021-07-06",928.5]
["1545364","KIT THRU BOLT FOR GST33","SECURITECH GROUP INC","GSTB3",68,"2023-01-01",136,"DROPSHIP","KIM BUNTIN",null,null,null,136,125,115,null,null,null,null,null,null,null,null,null,null,null,null,464.25,"2021-07-06",928.5]
["1589701","LEXI 4 DOOR LOCKDOWN CONTROLLER AND POWER SUPPLY  METAL ENCLOSURE","SECURITECH GROUP INC","PS-LD1-RR",467.5,"2023-01-01",935,"DROPSHIP","KIM BUNTIN",null,null,null,935,861,861,null,null,null,null,null,null,null,null,null,null,null,null,20.25,"2021-07-06",39]
["2021176","MORTISE LOCK WIRELESS REMOTE LOCKDOWN","SECURITECH GROUP INC","QAL-PE1xRCVR1",47.5,"2023-01-01",95,"DROPSHIP","KIM BUNTIN",null,null,null,95,84,84,null,null,null,null,null,null,null,null,null,null,null,null,464.25,"2021-07-06",928.5]
["1589699","LEXI EXIT DEVICE CONTROL TRIM FAIL SECURE STAINLESS STEEL HVY DTY RHR","SECURITECH GROUP INC","EDTG20D13-V1A1-??-630-RH",0,"2023-01-01",0,"CONFIGURED ITEM - NO COMPONENTS","KIM BUNTIN",null,null,null,null,985,985,null,null,null,null,null,null,null,null,null,null,null,null,464.25,"2021-07-06",928.5]
["1589700","LEXI EXIT DEVICE CONTROL TRIM FAIL SECURE STAINLESS STEEL HVY DTY LHR","SECURITECH GROUP INC","EDTG20D13V1A1-??-630-LH",0,"2023-01-01",0,"CONFIGURED ITEM - NO COMPONENTS","KIM BUNTIN",null,null,null,null,985,985,null,null,null,null,null,null,null,null,null,null,null,null,464.25,"2021-07-06",928.5]
["1653114E","SFIC CORE TAIL PIECE","SECURITECH GROUP INC","QID-C-SFIC-TP",25,"2023-01-01",50,"LIMITED USE ITEM","KIM BUNTIN",null,null,null,50,45,45,null,null,null,null,null,null,null,null,null,null,null,null,26,"2021-07-06",25]
["2000707","LOCK - QUICKBOLT INSTANT LOCKDOWN LOCK - LEFT HAND CYLINDRICAL LOCK","SECURITECH GROUP INC","QSB-101-LH",{"$f":"G69*0.5","v":277.5},"2023-01-01",{"$f":"M69","v":555},"DROPSHIP","KIM BUNTIN",null,null,null,555,510,485,null,null,null,null,null,null,null,null,null,null,null,null,464.25,"2021-07-06",928.5]
["2002194","LOCK - QUICKBOLT INSTANT LOCKDOWN LOCK - LEFT HAND REVERSE CYLINDRICAL LOCK","SECURITECH GROUP INC","QSB-101-LHR",277.5,"2023-01-01",555,"DROPSHIP","KIM BUNTIN",null,null,null,555,510,485,null,null,null,null,null,null,null,null,null,null,null,null,464.25,"2021-07-06",928.5]
["2000711","LOCK - QUICKBOLT INSTANT LOCKDOWN LOCK - RIGHT HAND CYLINDRICAL LOCK","SECURITECH GROUP INC","QSB-101-RH",277.5,"2023-01-01",555,"DROPSHIP","KIM BUNTIN",null,null,null,555,510,485,null,null,null,null,null,null,null,null,null,null,null,null,464.25,"2021-07-06",928.5]
["2002195","LOCK - QUICKBOLT INSTANT LOCKDOWN LOCK -RIGHT HAND REVERSE CYLINDRICAL LOCK","SECURITECH GROUP INC","QSB-101-RHR",277.5,"2023-01-01",555,"DROPSHIP","KIM BUNTIN",null,null,null,555,510,485,null,null,null,null,null,null,null,null,null,null,null,null,464.25,"2021-07-06",928.5]
["1631906E","QUICKBOLT LATCH LOCK COMBO LH","SECURITECH GROUP INC","QSB175-9KR-LH",560,"2023-01-01",1120,"DROPSHIP","KIM BUNTIN",null,null,null,1120,1030,985,null,null,null,null,null,null,null,null,null,null,null,null,786.25,"2021-07-06",1260]
["1631908E","QUICKBOLT LATCH LOCK COMBO LHR","SECURITECH GROUP INC","QSB175-9KR-LHR",560,"2023-01-01",1120,"DROPSHIP","KIM BUNTIN",null,null,null,1120,1030,985]
["1631907E","QUICKBOLT LATCH LOCK COMBO RH","SECURITECH GROUP INC","QSB175-9KR-RH",560,"2023-01-01",1120,"DROPSHIP","KIM BUNTIN",null,null,null,1120,1030,985]
["1631909E","QUICKBOLT LATCH LOCK COMBO RHR","SECURITECH GROUP INC","QSB175-9KR-RHR",560,"2023-01-01",1120,"DROPSHIP","KIM BUNTIN",null,null,null,1120,1030,985]
["2002196","QUICKBOLT METAL INSTALLATION TEMPLATE TOOL","SECURITECH GROUP INC","SBTML-1",25,"2023-01-01",50,"DROPSHIP","KIM BUNTIN",null,null,null,50,45,40]

{"sheet":"Model","index":2,"n_rows":2,"n_cols":5,"rows_kept":2,"cut":false,"hidden":true,"merged":[]}
["Sheet Name","Data",null,"Attribute Name","isCollection"]
["Entities","Data"]

{"sheet":"Reference Data","index":3,"n_rows":2422,"n_cols":5,"rows_kept":2422,"cut":false,"hidden":true,"merged":[]}
["masterclassificationexternal","ENTITY_NAME","refprimarysupplier ","refuseritemtype ","refmerchmanager "]
["Master Taxonomy>>FURNITURE>>FACILITIES AND GROUNDS>>FACILITIES AND GROUNDS PARTS>>FACILITIES/GROUNDS PARTS","configureditem","2G INSTALLATION","AGENDA ATO MODEL","CASEY SABINASH"]
["Master Taxonomy>>FURNITURE>>INSTALL>>INSTALL>>INSTALL","item","3D SYSTEMS INC","AGENDA PTO MODEL","CHARLES POPPELE"]
["Master Taxonomy>>FURNITURE>>SAFETY-FURNITURE>>FACILITY FORTIFICATION>>DOOR LOCKS","[DELETE]","3M","ATO ITEM","DENISE WEBBER"]
["Master Taxonomy>>FURNITURE>>SAFETY-FURNITURE>>FACILITY FORTIFICATION>>SECURITY SHADES","[NULL]","4IMPRINT INC","ATO MODEL","ELIZABETH MEAD"]
["Master Taxonomy>>SUPPLIES>>SCIENCE EDUCATION>>INSTRUMENTS/METERS>>POWER SUPPLIES",null,"9 TO 5 SEATING","ATO OPTION CLASS","ERIC ENERSON"]
["[DELETE]",null,"A AND L SCIENTIFIC CORP","BUNDLE","JASON MITCHELL"]
["[NULL]",null,"A AND M LABORATORY INSTALLATIONS LLC","CATALOG - INTERNAL","JENNA JAWORSKI"]
[null,null,"A WALECKA AND SON INC","CHARGES","JOHN GRZECA"]
[null,null,"A WINTHER A/S","CHARGES - PROCESS ITEMS","JULIE LEROY"]
[null,null,"A-WARE SERVICES","COLLATERAL","KATHLEEN BERKSON"]
[null,null,"A2Z INSTALLATIONS INC","CONFIGURED ITEM - EXTERNAL","KATHLEEN PALMBACH"]
[null,null,"AACER FLOORING","CONFIGURED ITEM - NO COMPONENTS","KELLY HENKEL"]
[null,null,"AARDVARK CLAY AND SUPPLIES INC","CONSUMER CHEMICAL","KIM BUNTIN"]
[null,null,"ABCO OFFICE FURNITURE","CUSTOM PLANNER","KRISTINE NAGREEN"]
[null,null,"ABELS FINE FURNITURE MOVERS INC","CUSTOM PLANNER COMPONENT","LAURA BECK"]
[null,null,"ABLENET INC","CUSTOM PLANNER PACKAGE","LEANNE SCHROEDER"]
[null,null,"ABUS USA","CUSTOMER SPECIFIC - DROPSHIP","LIA SCHOFIELD"]
[null,null,"ACADEMIC THERAPY PUBLICATIONS INC","CUSTOMER SPECIFIC - PTO","MELLISSA GOSSELIN"]
[null,null,"ACAPULCO ROCK AND SOIL PRODUCTS INC","CUSTOMER SPECIFIC - STOCK","NA"]
[null,null,"ACCELERATED GOLF INC","CUSTOMER SPECIFIC - STOCK KIT","ROBERT PAULSEN"]
[null,null,"ACCESS AUDIO-VISUAL SYSTEMS INC","Class","SAMANTHA COLLINS"]
[null,null,"ACCO BRANDS USA LLC-ACCO PRODUCTS","Config_Item","SARA RIGGLES"]
[null,null,"ACCO BRANDS USA LLC-MEAD PRODUCTS","DATA WAREHOUSE - EXTERNAL","TONY RAMPULLA"]
[null,null,"ACCUCUT","DATA WAREHOUSE - INTERNAL","UNASSIGNED"]
[null,null,"ACCURATE WIRECRAFT","DISCONTINUED ITEM","[DELETE]"]
[null,null,"ACCUSPLIT INC","DROPSHIP","[NULL]"]
[null,null,"ACE BAYOU CORP","DROPSHIP VARIANT"]
[null,null,"ACHIEVA","EXPENSE ITEM"]
[null,null,"ACME UNITED CORP","Finished Good"]
[null,null,"ACO MEDICAL SUPPLY INC","IN HOUSE PRINT"]
[null,null,"ACROTECH INC","INSTALL"]
[null,null,"ACS","Included_Item"]
[null,null,"ACS INC","Kit"]
[null,null,"ACTION BASED LEARNING/KIDSFIT","LAB CHEMICAL"]
[null,null,"ACTION PLAY SYSTEMS LLC","LIMITED USE ITEM"]
[null,null,"ACTIVA PRODUCTS INC","LITERATURE ITEM"]
[null,null,"ACTIVITY RESOURCES CO INC","LIVING MATERIAL COUPON"]
[null,null,"ACW CO INC","LIVING MATERIAL KIT"]
[null,null,"ADAM EQUIPMENT INC","LIVING MATERIAL PHANTOM"]
[null,null,"ADAMS MFG CORP","MFG SUPPLIES"]
[null,null,"ADAPTIVE ENGINEERING INC","Model"]
[null,null,"ADCO HEARING PRODUCTS","ONLINE CONTENT"]
[null,null,"ADELPHIA BY DATUM","ONLINE CONTENT KIT"]
[null,null,"ADHESIVE PRODUCTS INC","OPTION CLASS - CONFIGURED ITEM"]
[null,null,"ADI-ART DESIGN INTL INC","OPTION ONLY"]
[null,null,"ADKINS, LEONARD","OPTION ONLY NON-CATALOG"]
[null,null,"ADMIRAL METALS","OUTSIDE PROCESSING ITEM"]
[null,null,"ADVANCE GROUP","Option"]
[null,null,"ADVANCE METRO MOVERS OF NEW YORK","PHANTOM ITEM"]
[null,null,"ADVANCE OFFICE INSTALLATIONS INC","PICK TO ORDER KIT"]
[null,null,"ADVANCED MOVING AND INSTALLATION TECHNOLOGIES","PROMO ITEM"]
[null,null,"ADVANCED OFFICE SYSTEMS","PTO OPTION CLASS"]
[null,null,"ADVANTAGE MEDIA AND MARKETING INC","PURCHASED - BACKFLUSH"]
[null,null,"ADVANTAGE MOVING AND STORAGE INC","PURCHASED ITEM"]
[null,null,"ADVANTUS CORP","RAW ITEM"]
[null,null,"AEROBIE INC","REFERENCE ITEM"]
[null,null,"AEROMAX INDUSTRIES INC","RM EXPENSE"]
[null,null,"AFFORDABLE INTERIOR SYSTEMS INC LEOMINSTER","STK KIT - NO BOM"]
[null,null,"AFFORDABLE INTERIOR SYSTEMS LLC","STOCK KIT"]
[null,null,"AFFORDABLE OFFICE INSTALLATION LLC","SUBASSEMBLY"]
[null,null,"AGI ATTENTION-GETTERS INC","SUBASSEMBLY - BACKFLUSH"]
[null,null,"AGILITY MFG INC","Service"]
[null,null,"AHA CONCEPTS LLC","Standard"]
[null,null,"AHLSTROM-MUNKSJO FILTRATION LLC","[DELETE]"]
[null,null,"AIR AND PROCESS EQUIPMENT CO","[NULL]"]
[null,null,"AIR MASTER SYSTEMS CORP"]
[null,null,"AIRLITE PLASTICS CO"]
[null,null,"AIRMATE CO"]
[null,null,"AIRS"]
[null,null,"AITOH CO LLC"]
[null,null,"AJ OSTER FOILS LLC"]
[null,null,"ALASKA MARINE LINES INC"]
[null,null,"ALCONOX INC"]
[null,null,"ALDON CORP"]
[null,null,"ALEX TOYS LLC"]
[null,null,"ALEXANDERS MOBILITY SERVICES"]
[null,null,"ALGOMA NET CO"]
[null,null,"ALIMED INC"]
[null,null,"ALIQUANTUM INTL INC"]
[null,null,"ALL ABOUT SPORTS INC"]
[null,null,"ALL AMERICAN RELOCATION INC"]
[null,null,"ALL POINTS OF TEXAS"]
[null,null,"ALL SYSTEMS GO OFFICE FURNITURE SERVICES INC"]
[null,null,"ALL TIRE SUPPLY LLC"]
[null,null,"ALLAIN ASSEMBLIES LLC"]
[null,null,"ALLEGRO PRODUCTIONS INC"]
[null,null,"ALLIANCE RUBBER CO"]
[null,null,"ALLIED BOLT AND SCREW CORP"]
[null,null,"ALLIED CONVERTERS INC"]
[null,null,"ALLIED ELECTRONICS INC"]
[null,null,"ALLIED PLASTICS CO INC"]
[null,null,"ALLIED SCORING TABLES INC"]
[null,null,"ALLIED SYSTEMS PRODUCTS"]
[null,null,"ALLSTAR DRAPERY AND WINDOW TREATMENT CO INC"]
[null,null,"ALLWEST TRANSPORTATION INC"]
[null,null,"ALMO DISTRIBUTING WI INC"]
[null,null,"ALPHAGRAPHICS"]
[null,null,"ALPINE BEARING CO INC"]
[null,null,"ALTIMATE MEDICAL INC"]
[null,null,"ALTRO USA INC"]
[null,null,"ALUFOIL PRODUCTS CO INC"]
[null,null,"ALUMNI CLASSROOM FURNITURE INC"]
[null,null,"ALVIN AND CO"]
[null,null,"AM LITHOGRAPHY CORP"]
[null,null,"AMAX INC"]
[null,null,"AMERICAN 3B SCIENTIFIC LP"]
[null,null,"AMERICAN ART CLAY CO INC"]
[null,null,"AMERICAN ATHLETIC"]
[null,null,"AMERICAN CONTRACTORS OF BALTIMORE INC"]
[null,null,"AMERICAN CREATIVE TEAM INC"]
[null,null,"AMERICAN DESK MFG CO"]
[null,null,"AMERICAN DIVERSITY BUSINESS SOLUTIONS"]
[null,null,"AMERICAN EASEL LLC"]
[null,null,"AMERICAN EDUCATIONAL PRODUCTS LLC"]
[null,null,"AMERICAN EXPRESS"]
[null,null,"AMERICAN FIBER AND FINISHING INC"]
[null,null,"AMERICAN FURNITURE INSTALLATION INC"]
[null,null,"AMERICAN GATEWAY MARKETING GROUP"]
[null,null,"AMERICAN INTERIOR SYSTEMS INC"]
[null,null,"AMERICAN KUSA CORP DBA YASUTOMO"]
[null,null,"AMERICAN PAPER CONVERTERS INC"]
[null,null,"AMERICAN PLASTICS"]
[null,null,"AMERICAN SCIENTIFIC LLC"]
[null,null,"AMERICAN SEATING CO"]
[null,null,"AMERICAN SHIPPING AND PACKING INC"]
[null,null,"AMERICAN SOLAR WHOLESALE DIVISION"]
[null,null,"AMERICAN TOMBOW INC"]
[null,null,"AMERICAN WHITETAIL INC"]
[null,null,"AMHERST LABEL INC"]
[null,null,"AMPERSAND PRESS"]
[null,null,"AMPLIFY EDUCATION INC"]
[null,null,"AMPLIVOX SOUND SYSTEMS LLC"]
[null,null,"AMTAB MFG CORP"]
[null,null,"AMTRYKE LLC"]
[null,null,"ANCHOR PUMP AND ENGINEERED EQUIP INC"]
[null,null,"ANDERSEN CO"]
[null,null,"ANDRIEN, SCOTT"]
[null,null,"ANGOLA WIRE PRODUCTS INC"]
[null,null,"ANJI HEFENG FURNITURE CO LTD"]
[null,null,"ANNIN AND CO"]
[null,null,"ANZEA TEXTILES"]
[null,null,"AOMCO OFFICE FURNITURE INSTALLATION INC"]
[null,null,"APPAREL PRINTING PROMOTIONS"]
[null,null,"AQUA SOLUTIONS INC"]
[null,null,"AQUAPHOENIX SCIENTIFIC INC"]
[null,null,"AQUASPROUTS INC"]
[null,null,"ARC COM FABRICS INC"]
[null,null,"ARCADIA CHAIR CO"]
[null,null,"ARCHITEX INTL"]
[null,null,"ARCOR ELECTRONIC"]
[null,null,"ARIZONA LITHOGRAPHERS"]
[null,null,"ARK THERAPEUTIC SERVICES INC"]
[null,null,"ARLINGTON IND INC"]
[null,null,"ARMACELL CANADA INC DBA INDUSTRIAL THERMO POLYMERS"]
[null,null,"ARMADILLO ARTS AND CRAFTS"]
[null,null,"ARMIN MAIER AND ASSOCIATES"]
[null,null,"ARNOLD GRUMMERS LLC"]
[null,null,"ARNOLD INDUSTRIES INC"]
[null,null,"ARTCOBELL CORP"]
[null,null,"ARTE INDIGENA IMPORTS"]
[null,null,"ARTISTIC COVERINGS"]
[null,null,"ARTOGRAPH INC"]
[null,null,"AS OFFICE AND SCHOOL SUPPLY CO LTD"]
[null,null,"ASAP MOVERS"]
[null,null,"ASC AUTOMATED SYSTEMS CONSULTING INC"]
[null,null,"ASSEMBLERS INC"]
[null,null,"ASSOC FOR SUPERVISION AND CURRICULUM DEVELOPMENT"]
[null,null,"ASSOC SPRING RAYMOND"]
[null,null,"ASSOCIATED BAG CO"]
[null,null,"ATHLETIC CONNECTION"]
[null,null,"ATHLETIC SPECIALTIES INC"]
[null,null,"ATHLETICA-SPORT SYSTEMS UNLIMITED CORP"]
[null,null,"ATLANTIC POLY INC"]
[null,null,"ATLAS LOGISTICS INC"]
[null,null,"ATLAS VAN LINES INC"]
[null,null,"ATTAINMENT CO INC"]
[null,null,"AUDIO AND VIDEO LABS INC"]
[null,null,"AURORA GENERAL BOX LLC"]
[null,null,"AURORA STORAGE PRODUCTS INC"]
[null,null,"AUSSIE POUCH CO INC"]
[null,null,"AUTOMATED PACKAGING SYSTEMS INC"]
[null,null,"AUTOMATION COMPONENTS INC"]
[null,null,"AVANI ENVIRONMENTAL INTL INC"]
[null,null,"AVERY PRODUCTS CORP"]
[null,null,"AW FABER-CASTELL USA INC"]
[null,null,"AW MERCER INC"]
[null,null,"AWAREITY"]
[null,null,"AWT WORLD TRADE INC"]
[null,null,"AYER MOVING AND STORAGE CO"]
[null,null,"B AND B INSTALLATION"]
[null,null,"B AND K PRECISION"]
[null,null,"B AND L DISTRIBUTORS INC"]
[null,null,"B AND R INSTALLATIONS INC"]
[null,null,"B CALM LLC"]
[null,null,"B E S PUBLISHING"]
[null,null,"BAGGO INC"]
[null,null,"BAILEY MANUFACTURING CO"]
[null,null,"BAILEY POTTERY EQUIPMENT CORP"]
[null,null,"BAINBRIDGE MFG INC"]
[null,null,"BAKER AND TAYLOR LLC"]
[null,null,"BALANCED INPUT"]
[null,null,"BALLS R US CO LTD"]
[null,null,"BALLY BLOCK CO"]
[null,null,"BALTA BRUSH INC"]
[null,null,"BANANAGRAMS INC"]
[null,null,"BANG PRINTING INC"]
[null,null,"BARBARA W MAKAR AND SONS INC"]
[null,null,"BARGREEN ELLINGSON INC"]
[null,null,"BARKER CREEK PUBLISHING"]
[null,null,"BARNACLE CO"]
[null,null,"BARNES SEWING CENTER INC"]
[null,null,"BARON MFG CO LLC"]
[null,null,"BARON STAGE CURTAINS AND EQUIPMENT CO INC"]
[null,null,"BARRETTS FLOORING AND DECORATING CENTER"]
[null,null,"BARRICKS MFG CO"]
[null,null,"BARTS OFFICE INC"]
[null,null,"BASCOM LOGISTICS CORP"]
[null,null,"BASIC FUN INC"]
[null,null,"BAUMGARTENS"]
[null,null,"BAY AREA INSTALLATIONS INC"]
[null,null,"BCI BURKE CO LLC"]
[null,null,"BE AMAZING! TOYS"]
[null,null,"BE ATLAS CO"]
[null,null,"BEACH BASKETBALL USA INC"]
[null,null,"BEAD INDUSTRIES INC"]
[null,null,"BEADALON"]
[null,null,"BEADERY"]
[null,null,"BEES KEYS COMPLETE SECURITY SERVICE"]
[null,null,"BEGINAGAIN INC"]
[null,null,"BEHREND, DONALD"]
[null,null,"BEIFA GROUP CO LTD"]
[null,null,"BEKA INC"]
[null,null,"BEKINS NORTHWEST"]
[null,null,"BEL-ART PRODUCTS INC"]
[null,null,"BELEDUC USA INC"]
[null,null,"BELKNAP WHITE GROUP INC"]
[null,null,"BELL CANADA"]
[null,null,"BELLINGER, TIM"]
[null,null,"BELMAR WINDOW SHOP AND SHELTER SHUTTERS"]
[null,null,"BELSON OUTDOORS LLC"]
[null,null,"BELVEDERE USA LLC"]
[null,null,"BENCHMARK SCIENTIFIC INC"]
[null,null,"BENNETT WOOD SPECIALTIES INC"]
[null,null,"BENTCO OFFICE SOLUTIONS"]
[null,null,"BERCO FURNITURE SOLUTIONS"]
[null,null,"BERGERON HEALTHCARE"]
[null,null,"BERKSHIRE BIOLOGICAL INC"]
[null,null,"BERLIN PACKAGING LLC"]
[null,null,"BES SOLUTIONS INC DBA BUCKEYE EDUCATIONAL SYSTEMS"]
[null,null,"BESTER BROTHERS TRANSFER AND STORAGE CO INC"]
[null,null,"BEYOND THE FARM"]
[null,null,"BHALLA INTERNATIONAL"]
[null,null,"BIC USA INC"]
[null,null,"BICKFORD, JAMES"]
[null,null,"BIOFIT ENGINEERED PRODUCTS"]
[null,null,"BIOLOGISTEX INC"]
[null,null,"BIOMEDIA ASSOCIATES LLC"]
[null,null,"BIRD IN HAND"]
[null,null,"BIRDWELL CLEANING PRODUCTS INC"]
[null,null,"BISON INC"]
[null,null,"BJ INDUSTRIES INC"]
[null,null,"BJ LONG CO"]
[null,null,"BK MFG CORP"]
[null,null,"BLAKES INSTALLATION ASSEMBLY AND REPAIRS LLC"]
[null,null,"BLICK ART MATERIALS LLC"]
[null,null,"BLIND AMBITIONS INC"]
[null,null,"BLOOMSBURY PRECISION INC"]
[null,null,"BLUE SKY INSTALLATIONS"]
[null,null,"BLUELINX CORP"]
[null,null,"BLUMBERG CO INC"]
[null,null,"BOB AND DAVES LAWN AND LANDSCAPE MAINTENANCE INC"]
[null,null,"BOBRICK WASHROOM EQUIPMENT INC"]
[null,null,"BODEWELL BODYSENSE"]
[null,null,"BOPPY CO"]
[null,null,"BORENSON AND ASSOC INC"]
[null,null,"BOSSARD LLC"]
[null,null,"BOUNCY BANDS LLC"]
[null,null,"BOVIE SCREEN PROCESS PRINTING CO INC"]
[null,null,"BPK SERVICES LLC"]
[null,null,"BR FUNSTEN AND CO"]
[null,null,"BRACKITZ"]
[null,null,"BRAD CONSTANT CONSTRUCTION"]
[null,null,"BRADFORD AND BIGELOW INC"]
[null,null,"BRADLEY B POTTERY LLC"]
[null,null,"BRADSHAW INTL INC"]
[null,null,"BRAND CO INC"]
[null,null,"BRAND NEW WORLD"]
[null,null,"BRANSON ULTRASONICS CORP"]
[null,null,"BRATTLE PUBLISHING GROUP LLC"]
[null,null,"BRETFORD MFG"]
[null,null,"BRIAN NIEMI CONSTRUCTION LLC"]
[null,null,"BRIGHT OF SWEDEN AB"]
[null,null,"BRINE INC"]
[null,null,"BRINSEA PRODUCTS INC"]
[null,null,"BROCADE SEWING STUDIO LLC"]
[null,null,"BRODART CO"]
[null,null,"BROWN DOG GADGETS"]
[null,null,"BROWN SALES CORP"]
[null,null,"BROWN WOOD INC"]
[null,null,"BROWNING, TONY"]
[null,null,"BUCKEYE BUSINESS PRODUCTS INC"]
[null,null,"BUCKEYE FASTENERS CO"]
[null,null,"BUCKHORN INC"]
[null,null,"BUDDHA BOARD INC"]
[null,null,"BUDDY SYSTEMS INC"]
[null,null,"BUILDING CREATIVE KIDS LLC"]
[null,null,"BUILT 2 SUIT OFFICE"]
[null,null,"BULMAN PRODUCTS INC"]
[null,null,"BURMAN, JOHN"]
[null,null,"BURNHAM ASSOC INC"]
[null,null,"BUSH INDUSTRIES INC"]
[null,null,"BUSTER LIGHTING DESIGN"]
[null,null,"BUTLER HOME PRODUCTS LLC"]
[null,null,"BYRNE ELECTRICAL SPECIALISTS INC"]
[null,null,"C AND A SCIENTIFIC CO INC"]
[null,null,"C AND B INSTALLERS LLC"]
[null,null,"C AND S FLOORING INC"]
[null,null,"C-LINE PRODUCTS INC"]
[null,null,"C2F INC"]
[null,null,"CABLE TIES AND MORE"]
[null,null,"CALIFORNIA SCENICS"]
[null,null,"CAMBRIDGE PHYSICS OUTLET INC"]
[null,null,"CAMBRO MFG CO"]
[null,null,"CAMPBELL, KEVIN"]
[null,null,"CAN AM COATINGS"]
[null,null,"CANDL FOUNDATION"]
[null,null,"CANSON INC"]
[null,null,"CAPE CONTRACT FURNITURE INC"]
[null,null,"CAPITAL CANDY CO INC"]
[null,null,"CAPITAL SERVICES AND SUPPLIES INC"]
[null,null,"CAPITOL NORTH AMERICAN"]
[null,null,"CAPITOLINE PRODUCTS INC"]
[null,null,"CAPSTONE"]
[null,null,"CAPTAIN CREATIVE INC"]
[null,null,"CARLSON PRINT GROUP"]
[null,null,"CARNEGIE TEXTILE CO"]
[null,null,"CAROLINA BIOLOGICAL SUPPLY CO"]
[null,null,"CAROLINA COVERTECH INC DBA SCHOOL SAFETY SOLUTIONS"]
[null,null,"CAROLINA WHOLESALE OFFICE MACHINE CO INC"]
[null,null,"CARPET SPECIALISTS INC"]
[null,null,"CARPETS FOR KIDS INC"]
[null,null,"CARSON OPTICAL INC"]
[null,null,"CARSON-DELLOSA PUBLISHING LLC"]
[null,null,"CASE IT"]
[null,null,"CASE OFFICE FURNITURE"]
[null,null,"CASTEEL PRODUCTS CO"]
[null,null,"CASTLE GLASS INC"]
[null,null,"CASTLESPRING ENTERPRISES LTD"]
[null,null,"CATIGA ELECTRONICS CO LTD"]
[null,null,"CDW DIRECT"]
[null,null,"CEIA USA LTD"]
[null,null,"CELESTRON ACQUISITION LLC"]
[null,null,"CELLMARK DIRECT LLC"]
[null,null,"CENTER ENTERPRISES INC"]
[null,null,"CENTRAL FLORIDA BUSINESS INSTALLATION LLC"]
[null,null,"CENTRAL NATIONAL-GOTTESMAN INC"]
[null,null,"CENTRAL PAPER PRODUCTS CO INC"]
[null,null,"CENTRAL PHILADELPHIA LOCKSMITH"]
[null,null,"CENTRAL RESTAURANT PRODUCTS"]
[null,null,"CENTRAL STATES FLOOR COVERING"]
[null,null,"CENTRAL TRANSPORTATION SYSTEMS"]
[null,null,"CENTURY SPRING CORP"]
[null,null,"CENTURY SPRING MFG CO INC"]
[null,null,"CENTURYLINK"]
[null,null,"CERAMIC SHOP"]
[null,null,"CERAMIC SHOP LLC"]
[null,null,"CERAMIC SUPPLY INC"]
[null,null,"CERTIFIED SALES AND SERVICE INC"]
[null,null,"CETACEA SOUND CORP"]
[null,null,"CF STINSON INC"]
[null,null,"CFS INSTALLATION INC"]
[null,null,"CHAIR DANCING INTL INC"]
[null,null,"CHALLENGER INDUSTRIES INC"]
[null,null,"CHAMPION SAFE AND LOCK"]
[null,null,"CHAMPION SPORTS"]
[null,null,"CHANNIES"]
[null,null,"CHARDAN ENTERPRISES INC"]
[null,null,"CHARLES LEONARD INC"]
[null,null,"CHARTPAK INC"]
[null,null,"CHE SCIENTIFIC CO HONG KONG LTD"]
[null,null,"CHERVON NORTH AMERICA INC"]
[null,null,"CHEWIGEM USA"]
[null,null,"CHICAGO LIGHTHOUSE INDUSTRIES"]
[null,null,"CHICAGO SERIES OF LOCKTON COMPANIES LLC"]
[null,null,"CHILDRENS FACTORY LLC"]
[null,null,"CHILDS PLAY INC"]
[null,null,"CHINA FIRST PENCIL CO LTD"]
[null,null,"CHIPMAN RELOCATIONS AND LOGISTICS"]
[null,null,"CHOICE OFFICE INSTALLATIONS INC"]
[null,null,"CHRISTENSEN EDUCATIONAL MATERIALS LLC"]
[null,null,"CHRISTY LANE ENTERPRISES"]
[null,null,"CHROMA ACRYLICS INC"]
[null,null,"CHRONISTER, JANE"]
[null,null,"CIAO SEMINARS"]
[null,null,"CINE MAGNETICS INC"]
[null,null,"CIRCLE INC"]
[null,null,"CLAFLIN CO INC"]
[null,null,"CLARENCE J VENNE LLC"]
[null,null,"CLASSROOM COMPLETE PRESS"]
[null,null,"CLASSROOM LIBRARY CO"]
[null,null,"CLASSROOM SEATING SOLUTIONS LLC"]
[null,null,"CLAYTON INSTALLATION RESOURCES"]
[null,null,"CLEAN SPACE PROJECT LLC"]
[null,null,"CLEARSNAP INC"]
[null,null,"CLIFFORD W ESTES CO INC"]
[null,null,"CLINTON INDUSTRIES INC"]
[null,null,"CLOUD CHART INC"]
[null,null,"CLUB RESOURCE GROUP"]
[null,null,"CNC FACTORY"]
[null,null,"COAKLEY BROTHERS COMPANY"]
[null,null,"COATS AND CLARK SEWING SUPPLIES"]
[null,null,"COBALT INDUSTRIAL CO LTD"]
[null,null,"COCHRANES OF OXFORD LTD"]
[null,null,"CODE BLUE CORPORATION"]
[null,null,"CODO MFG CORP"]
[null,null,"CODY WITTROCK CONSTRUCTION LLC"]
[null,null,"COILCRAFT INC"]
[null,null,"COLART AMERICAS"]
[null,null,"COLGATE MATTRESS ATLANTA CORP"]
[null,null,"COLLINS PATTERN AND MOLD"]
[null,null,"COLONIAL NEEDLE CO"]
[null,null,"COLONIAL VAN AND STORAGE INC"]
[null,null,"COLOR WHEEL CO"]
[null,null,"COLORAMICS LLC"]
[null,null,"COLUMBIA PINE CONES AND BOTANICALS"]
[null,null,"COLUMBIA-INLAND CORP"]
[null,null,"COLUMBIAN HOME PRODUCTS LLC"]
[null,null,"COMFOR TEK SEATING INC"]
[null,null,"COMMAND DIGITAL"]
[null,null,"COMMAND ROBBINSVILLE"]
[null,null,"COMMERCIAL FLOORING CONCEPTS"]
[null,null,"COMMERCIAL FURNITURE SERVICES LLC"]
[null,null,"COMMERCIAL FURNITURE SPECIALISTS INC"]
[null,null,"COMMERCIAL FURNITURE TRANSPORT INC"]
[null,null,"COMMERCIAL WORKS INC"]
[null,null,"COMMUNICATION INNOVATORS INC"]
[null,null,"COMMUNITY"]
[null,null,"COMPASS INDUSTRIES INC"]
[null,null,"COMPLETE INSTALLATIONS"]
[null,null,"COMPLETE OFFICE INSTALLATION LLC"]
[null,null,"COMPONENT FABRICATORS INC"]
[null,null,"COMPONENTS AND SOLUTIONS INC"]
[null,null,"CONFIGURATION CHICAGO INC"]
[null,null,"CONNECTICUT VALLEY BIOLOGICAL SUPPLY CO INC"]
[null,null,"CONRAD MACHINE CO"]
[null,null,"CONSET AMERICA LLC"]
[null,null,"CONSOLIDATED MARKETING CORP"]
[null,null,"CONSUMER CARE PRODUCTS"]
[null,null,"CONTEMPORARY INTERIORS INC"]
[null,null,"CONTINENTAL COMMERCIAL PRODUCTS"]
[null,null,"CONVAID PRODUCTS INC"]
[null,null,"COOPER CABINETS INC"]
[null,null,"COORDINATED PROJECT INSTALLATION INC"]
[null,null,"COPERNICUS CANADA"]
[null,null,"COPERNICUS EDUCATIONAL PRODUCTS"]
[null,null,"CORE GROUP LTD OF ILLINOIS"]
[null,null,"CORELLE BRANDS LLC"]
[null,null,"CORNING INC"]
[null,null,"CORRELL INC"]
[null,null,"CORRIGAN MOVING SYSTEMS"]
[null,null,"CORRUGATED PACKAGING INC"]
[null,null,"CORT BUSINESS SERVICES CORP"]
[null,null,"COTA GLOBAL"]
[null,null,"COUGHLAN COMPANIES LLC DBA CAPSTONE"]
[null,null,"COVERED IN COMFORT"]
[null,null,"COVERMASTER INC"]
[null,null,"CRABTREE PUBLISHING CO"]
[null,null,"CRAIG ENTERPRISES INC"]
[null,null,"CRAMER LLC"]
[null,null,"CRAMER PRODUCTS INC"]
[null,null,"CRAWFORD, HAROLD"]
[null,null,"CRAYOLA CANADA"]
[null,null,"CRAYOLA LLC"]
[null,null,"CRAZY AARON ENTERPRISES INC"]
[null,null,"CREATIVE ARTS BY OBERTIN"]
[null,null,"CREATIVE OFFICE INC"]
[null,null,"CREATIVE OFFICE SOLUTIONS INC"]
[null,null,"CREATIVE PAPERCLAY CO INC"]
[null,null,"CREATIVE SHAPES ETC LLC"]
[null,null,"CREATIVE TEACHING PRESS INC"]
[null,null,"CREATIVE VINYL PRODUCTS INC"]
[null,null,"CRESCENT CARDBOARD CO LLC"]
[null,null,"CROSMAN SEED CORP"]
[null,null,"CROSSBOW EDUCATION CORP"]
[null,null,"CROSSCUTTING CONCEPTS LLC"]
[null,null,"CROSSROADS FOR EDUCATIONAL SERVICES"]
[null,null,"CROWN EQUIPMENT CORP"]
[null,null,"CRYSTALWARE LLC"]
[null,null,"CTS CORP"]
[null,null,"CULTURE MEDIA AND SUPPLIES INC"]
[null,null,"CURTITION"]
[null,null,"CUSTOM EDUCATIONAL FURNISHINGS LLC"]
[null,null,"CUSTOM OFFICE DESIGN INC"]
[null,null,"CUSTOM PLASTIC INDUSTRIES"]
[null,null,"CYANOTYPE STORE"]
[null,null,"CYCLE STREET MANUFACTURING"]
[null,null,"CYRGUS CO INC"]
[null,null,"D AND H DISTRIBUTING CO"]
[null,null,"D AND L COMPANY LLC"]
[null,null,"D BRYAN RICE"]
[null,null,"D-R SERVICES INC"]
[null,null,"D10 SPECIALTIES LLC"]
[null,null,"DAHLE NORTH AMERICA INC"]
[null,null,"DAKLIN ELECTRONICS CO LTD"]
[null,null,"DANLLOH OFFICE INSTALLATIONS INC"]
[null,null,"DANMAR PRODUCTS INC"]
[null,null,"DANTOY"]
[null,null,"DAP INC"]
[null,null,"DARICE"]
[null,null,"DARYL FLOOD RELOCATION INC"]
[null,null,"DATA LINK CORP"]
[null,null,"DATUM STORAGE SOLUTIONS"]
[null,null,"DAULT LEWIS FLOORING PARTNERSHIP"]
[null,null,"DAVIS INSTRUMENT CORP"]
[null,null,"DAYDREAM EDUCATION LLC"]
[null,null,"DBD LLC"]
[null,null,"DCP MICRODEVELOPMENTS LTD"]
[null,null,"DEBCOR"]
[null,null,"DECKER EQUIPMENT"]
[null,null,"DEFLECT-O LLC"]
[null,null,"DEKALB COUNTY SCHOOL DISTRICT"]
[null,null,"DELIBRAINY LLC"]
[null,null,"DELTA PACKAGING INC"]
[null,null,"DENOYER-GEPPERT SCIENCE CO"]
[null,null,"DESIGN INTERNATIONAL GROUP INC"]
[null,null,"DESIGN-MARK INDUSTRIES INC"]
[null,null,"DESIGNER INSTALLATION SERVICES INC"]
[null,null,"DESIGNS PLUS"]
[null,null,"DESIGNTEX"]
[null,null,"DESK LABS LLC"]
[null,null,"DETAIL OFFICE CONTRACTORS INC"]
[null,null,"DEV-COA LLC"]
[null,null,"DEXTER EDUCATIONAL PLAY"]
[null,null,"DF GRAY INC"]
[null,null,"DIAL IND INC"]
[null,null,"DIAMOND RELOCATION"]
[null,null,"DIAMOND STATE FLOORING AND FURNITURE"]
[null,null,"DIAMOND TECH INTL"]
[null,null,"DIAMOND W FLOOR COVERING INC"]
[null,null,"DICK MARTIN SPORTS INC"]
[null,null,"DIDAX EDUCATIONAL RESOURCES INC"]
[null,null,"DIGI-KEY CORP"]
[null,null,"DING HWA CO LTD"]
[null,null,"DISASTER SOLUTIONS LLC"]
[null,null,"DISC-O-BED RETAIL INC"]
[null,null,"DISCOVER WITH DR COOL"]
[null,null,"DISCOVERY EDUCATION INC"]
[null,null,"DISPLAY WAREHOUSE INC"]
[null,null,"DIVERSIFIED WOODCRAFTS INC"]
[null,null,"DIVISIONTEN LLC"]
[null,null,"DIXIE SEATING CO"]
[null,null,"DIXON TICONDEROGA CO"]
[null,null,"DIY MEDIA GROUP"]
[null,null,"DM TRANSPORTATION MANAGEMENT SERVICES"]
[null,null,"DMI FURNITURE INC"]
[null,null,"DO-A-DOT ART"]
[null,null,"DOANE KEYES AND ASSOCIATES INC"]
[null,null,"DOCUMATION LLC"]
[null,null,"DOLLAMUR SPORT SURFACES"]
[null,null,"DOM SPORTS AND GAMES"]
[null,null,"DOMTAR CORP"]
[null,null,"DONS CARPET SERVICE"]
[null,null,"DOOLEY INC"]
[null,null,"DORCY INTL INC"]
[null,null,"DOUGLAS STEWART CO INC"]
[null,null,"DOWLING MAGNETS"]
[null,null,"DR INSTRUMENTS INC"]
[null,null,"DRAPER INC"]
[null,null,"DRIVE MEDICAL SPV LLC"]
[null,null,"DS SMITH PACKAGING"]
[null,null,"DSC2 INC DBA DIXIE SEATING CO"]
[null,null,"DSS DISTRIBUTING LLC"]
[null,null,"DUKANE CORP"]
[null,null,"DUNCAN ENTERPRISES"]
[null,null,"DUNECRAFT INC"]
[null,null,"DUNLOP SPORTS GROUP AMERICAS INC"]
[null,null,"DUNN MFG CORP"]
[null,null,"DURABLE OFFICE PRODUCTS CORP"]
[null,null,"DURACART USA LLC"]
[null,null,"DURCON INC"]
[null,null,"DURON BUILDING SPECIALTIES"]
[null,null,"DWK LIFE SCIENCES LLC"]
[null,null,"DWYER INSTRUMENTS INC"]
[null,null,"DYENAMIC MOVEMENT PRODUCTS"]
[null,null,"DYNALON LABWARE"]
[null,null,"DYNAMIC MUSIC DISTRIBUTING"]
[null,null,"DYSLEXIA SOCIETY OF CONNECTICUT INC"]
[null,null,"E-K MEDIA INC"]
[null,null,"E-PAK MFG LLC"]
[null,null,"E-TAY INDUSTRIAL CO LTD"]
[null,null,"EAI EDUCATION"]
[null,null,"EAP ENTERPRISES LLC"]
[null,null,"EARLY LEARNING RESOURCES LLC CHINA"]
[null,null,"EAST COAST FURNITURE SERVICES"]
[null,null,"EASTERN SOLAR GLASS"]
[null,null,"EASTERN TIMES TECHNOLOGY LTD"]
[null,null,"EASTON DIAMOND SPORTS LLC"]
[null,null,"EASTWOOD MFG CO"]
[null,null,"EBERBACH CORP"]
[null,null,"EBRYIT INC"]
[null,null,"ECA EDUCATIONAL SERVICES INC"]
[null,null,"ECDC INC"]
[null,null,"ECHO THERM"]
[null,null,"ECLECTIC PRODUCTS INC"]
[null,null,"ECONO MOVERS INC"]
[null,null,"ECR4KIDS LP"]
[null,null,"ED SPELDY EAST CO LTD"]
[null,null,"EDGECRAFT CORP"]
[null,null,"EDM OFFICE SERVICES INC"]
[null,null,"EDMOND MUSIC INC"]
[null,null,"EDSAL MFG CO INC"]
[null,null,"EDUCATIONAL ACTIVITIES"]
[null,null,"EDUCATIONAL ELECTRONICS"]
[null,null,"EDUCATORS PUBLISHING SERVICE"]
[null,null,"EDUCATORS RESOURCE INC"]
[null,null,"EDUPRESS"]
[null,null,"EDUSHAPE"]
[null,null,"EDUSOURCE CORPORATION"]
[null,null,"EDVOTEK INC"]
[null,null,"EDX EDUCATION CO LTD"]
[null,null,"EIKO"]
[null,null,"EISCO SCIENTIFIC LLC"]
[null,null,"EKO"]
[null,null,"ELECTRO MECHANICAL"]
[null,null,"ELECTRO-TECHNIC PRODUCTS LLC"]
[null,null,"ELECTRONIC INSTRUMENTATION"]
[null,null,"ELENCO ELECTRONICS INC"]
[null,null,"ELITE FURNITURE INTERIORS INC"]
[null,null,"ELITE GROUP INC"]
[null,null,"ELITE OFFICE INSTALLATION LLC"]
[null,null,"ELITE OFFICE INSTALLATIONS LLC"]
[null,null,"ELKAY SALES INC"]
[null,null,"ELLIS ENTERPRISES"]
[null,null,"ELLISON EDUCATIONAL EQUIPMENT INC"]
[null,null,"ELMERS PRODUCTS INC"]
[null,null,"ELMO USA CORP"]
[null,null,"EMOTIPLUSH INC"]
[null,null,"EMSCO INC"]
[null,null,"ENABLING DEVICES"]
[null,null,"ENCORE SEATING"]
[null,null,"ENDICOTT-SEYMOUR INC"]
[null,null,"ENEFLUX ARMTEK MAGNETICS INC"]
[null,null,"ENERGIZER LLC"]
[null,null,"ENERGIZER LLC-RAYOVAC"]
[null,null,"ENSLOW PUBLISHING LLC"]
[null,null,"ENVIRONMENTALLIGHTS.COM"]
[null,null,"ENVIRONMENTS 4 BUSINESS LLC"]
[null,null,"ENVIRONMENTS PLUS"]
[null,null,"ENVIRONMOLDS LLC"]
[null,null,"ENWORK"]
[null,null,"EOA SCIENTIFIC SYSTEMS INC"]
[null,null,"EPOCH EVERLASTING PLAY LLC"]
[null,null,"EPYLON CORP"]
[null,null,"EQUIPMENT DEPOT PENNSYLVANIA INC"]
[null,null,"ERG INTL"]
[null,null,"ERK FLOORING LLC"]
[null,null,"ERSO INC"]
[null,null,"ESAB GROUP INC"]
[null,null,"ESCALADE SPORTS"]
[null,null,"ESI CANTON LLC"]
[null,null,"ESI ERGONOMIC SOLUTIONS LLC"]
[null,null,"ESSENTIAL LEARNING PRODUCTS"]
[null,null,"ESTES INDUSTRIES LLC"]
[null,null,"ESTES-COX CORP"]
[null,null,"ETA HAND2MIND"]
[null,null,"ETR ASSOCIATES INC"]
[null,null,"EURO TOOL INC"]
[null,null,"EUROPEAN SPORTS MERCHANDISING"]
[null,null,"EVAN-MOOR EDUCATIONAL PUBLISHERS"]
[null,null,"EVER YOUNG SPORTS CO LTD"]
[null,null,"EVERBASE SOLUTIONS LLC"]
[null,null,"EVERBRITE LLC"]
[null,null,"EVERFAITH INTL INDUSTRIAL LTD"]
[null,null,"EVERLAST CLIMBING INDUSTRIES"]
[null,null,"EVERRICH INDUSTRIES INC"]
[null,null,"EVOLLVE INC"]
[null,null,"EXCEL HOBBY BLADES CORP"]
[null,null,"EXEMPLIS CORPORATION"]
[null,null,"EXPANDED TECHNOLOGIES CORP"]
[null,null,"EXPERIA USA INC"]
[null,null,"EXPERT OFFICE LLC"]
[null,null,"EXPLORACISE"]
[null,null,"EXPLOROS INC"]
[null,null,"EXPRESS MOVING AND TRUCKING LLC"]
[null,null,"EZPZ"]
[null,null,"FABRICATION ENTERPRISES INC"]
[null,null,"FACTORY DIRECT PARTNERS LP"]
[null,null,"FAF TECH INC"]
[null,null,"FALCON"]
[null,null,"FALCON SAFETY PRODUCTS INC"]
[null,null,"FANUC AMERICA CORP"]
[null,null,"FARNHAM EQUIPMENT CO"]
[null,null,"FAST POWER ENTERPRISE LTD"]
[null,null,"FAT BRAIN TOY CO LLC"]
[null,null,"FAULL FABRICATING INC"]
[null,null,"FDW CORP"]
[null,null,"FE HALE MFG CO"]
[null,null,"FEDERAL PLASTICS MFG LTD"]
[null,null,"FEDERAL STREET PRESS"]
[null,null,"FELLING PRODUCTS INC"]
[null,null,"FELLOWES INC"]
[null,null,"FERMAN FABRICS"]
[null,null,"FERRARI AMERICA INC"]
[null,null,"FERREIRA, STEPHEN"]
[null,null,"FESSENDEN HALL OF PA INC"]
[null,null,"FGV AMERICA INC"]
[null,null,"FIELD CONTROLS LLC"]
[null,null,"FINE FINISHES"]
[null,null,"FINISH STRONG CORP"]
[null,null,"FIRE KING INTL LLC"]
[null,null,"FIREFLY GLOBAL"]
[null,null,"FIRESTOP TECHNOLOGIES INC"]
[null,null,"FIRST CELTIC TOYS AND LEARNING INC"]
[null,null,"FIRST CLASS SEATING LLC"]
[null,null,"FIRST HAND LEARNING INC"]
[null,null,"FISCHER TECHNICAL CO"]
[null,null,"FISHER ATHLETIC EQUIPMENT INC"]
[null,null,"FISHER PRICE INC"]
[null,null,"FISHER SCIENTIFIC CO LLC"]
[null,null,"FISKARS BRANDS INC"]
[null,null,"FIT AND FUN PLAYSCAPES LLC"]
[null,null,"FITNESS ON THE JOB DBA NEWMAN ADAPTIVE"]
[null,null,"FLAGSHIP CARPETS"]
[null,null,"FLAIRWOOD INDUSTRIES INC"]
[null,null,"FLAMBEAU INC"]
[null,null,"FLEETWOOD GROUP INC"]
[null,null,"FLEXITOYS"]
[null,null,"FLIPSIDE PRODUCTS INC"]
[null,null,"FLIR COMMERCIAL SYSTEMS INC"]
[null,null,"FLOOD, KATHERINE"]
[null,null,"FLOORMARX LLC"]
[null,null,"FLORACRAFT CORP"]
[null,null,"FLORSTAR SALES INC"]
[null,null,"FLOWERHOUSE"]
[null,null,"FLR SANDERS INC"]
[null,null,"FLUENT AUDIO INC"]
[null,null,"FM BRUSH CO INC"]
[null,null,"FOLDCRAFT CO"]
[null,null,"FOLDER EXPRESS DIV OF CRABAR GBF INC"]
[null,null,"FOLKMANIS INC"]
[null,null,"FOMCORE LLC"]
[null,null,"FORBES DISTRIBUTION AND WAREHOUSING INC"]
[null,null,"FORBO FLOORING INC"]
[null,null,"FORMASPACE LP"]
[null,null,"FORWARD SPORTS PVT LTD"]
[null,null,"FOSHEIM FLOORING INSTALL"]
[null,null,"FOUNDATION FOR THE ADVANCED EDUCATION IN THE SCIENCES"]
[null,null,"FOUNDATIONS WORLDWIDE INC"]
[null,null,"FOUNDATIONS WORLDWIDE INC CANADA"]
[null,null,"FOURWAY WAREHOUSE AND DISTRIBUTION INC"]
[null,null,"FOX CHAPEL PUBLISHING CO INC"]
[null,null,"FPC CORP"]
[null,null,"FRANKLIN LEARNING SYSTEMS INC"]
[null,null,"FRASCH"]
[null,null,"FRASCH LLC"]
[null,null,"FREDALE INTL CORP"]
[null,null,"FREE SPIRIT PUBLISHING"]
[null,null,"FREEDOM CONCEPTS USA LLC"]
[null,null,"FREELIN-WADE CO"]
[null,null,"FREEMAN MFG AND SUPPLY CO"]
[null,null,"FRIANT ASSOCIATES"]
[null,null,"FRIEND BOX CO"]
[null,null,"FRONT ROW EXPERIENCE"]
[null,null,"FRONTIER INSTALLATION"]
[null,null,"FU RONG INDUSTRIAL CO LTD"]
[null,null,"FULMIN INTERNATIONAL INC"]
[null,null,"FUN EXPRESS"]
[null,null,"FUN N NUF INC"]
[null,null,"FUNCTIONAL FLOORS"]
[null,null,"FUNDER AMERICA INC"]
[null,null,"FURNITURE REPRESENTATIVES LTD"]
[null,null,"FURNITURE SERVICES UNLIMITED INC"]
[null,null,"FUTURE HORIZONS INC"]
[null,null,"G AND E INSTALLATION"]
[null,null,"G AND G FITNESS EQUIPMENT INC"]
[null,null,"G AND L INSTALLATIONS INC"]
[null,null,"GAGNE INC"]
[null,null,"GALLOPADE INTL INC"]
[null,null,"GANE BROTHERS AND LANE"]
[null,null,"GARCIA, FRANCISCO"]
[null,null,"GATEWAY BOOKBINDING"]
[null,null,"GATEWAY PRESS INC"]
[null,null,"GAVCO IND INC"]
[null,null,"GDY INSTALLATIONS INC"]
[null,null,"GEMIOUS LTD"]
[null,null,"GEMMY PRINTING CO LTD"]
[null,null,"GENERAL PENCIL CO INC"]
[null,null,"GENESIS OFFICE INSTALLATION SERVICES"]
[null,null,"GEO GLOBAL PARTNERS LLC"]
[null,null,"GEOED LTD"]
[null,null,"GEOMOTION GROUP INC"]
[null,null,"GEOSCIENCE IND"]
[null,null,"GEOTOYS LLC"]
[null,null,"GERFLOR USA INC"]
[null,null,"GET READY INC"]
[null,null,"GETTING TO KNOW INC"]
[null,null,"GEYER INSTRUCTIONAL PRODUCTS"]
[null,null,"GF HEALTH PRODUCTS INC"]
[null,null,"GHENT MFG INC"]
[null,null,"GIANT FLOOR AND WALL COVERING CO INC"]
[null,null,"GIANTMICROBES INC"]
[null,null,"GL STONE AND SON INC"]
[null,null,"GLAKAD SCIENCE LLC"]
[null,null,"GLO GERM CO"]
[null,null,"GLOBAL ART MATERIALS INC"]
[null,null,"GLOBAL EQUIPMENT CO"]
[null,null,"GLOBAL INDUSTRIES INC"]
[null,null,"GLOBAL MARKET CONNECTIONS LTD"]
[null,null,"GLUE DOTS INTL LLC"]
[null,null,"GNG LOGISTICS"]
[null,null,"GOAL SPORTING GOODS INC"]
[null,null,"GOLD CREST DISTRIBUTING"]
[null,null,"GOLDEN SERVICES"]
[null,null,"GOLDEN STATE GRAPHICS"]
[null,null,"GOLIATH"]
[null,null,"GOMEZ FLOOR COVERING INC"]
[null,null,"GOMEZ, RODOLFO"]
[null,null,"GOR CON CONSTRUCTION INC"]
[null,null,"GORILLA GLUE COMPANY LLC"]
[null,null,"GOT SPECIAL KIDS"]
[null,null,"GOWLING WLG CANADA LLP"]
[null,null,"GPD GROUP EMPLOYEES FOUNDATION INC"]
[null,null,"GPI ANATOMICALS"]
[null,null,"GPS PRODUCTS INC"]
[null,null,"GQF MFG CO INC"]
[null,null,"GRADUATIONSOURCE"]
[null,null,"GRAFIX"]
[null,null,"GRAINGER"]
[null,null,"GRAN ADELL MFG CO"]
[null,null,"GRAND SLAM COMMERCIAL CLEANING LLC"]
[null,null,"GRANDEAGLE GLOBAL CO LTD"]
[null,null,"GRANNIX ELECTRICAL MANUFACTURING LTD"]
[null,null,"GRANT WOOD AREA EDUCATION CENTER"]
[null,null,"GRANTCO MFG INC"]
[null,null,"GRAPHIC LITHO"]
[null,null,"GRAPHIC PRODUCTS CORP"]
[null,null,"GRAPHICS DISTRIBUTION INC"]
[null,null,"GRATNELLS LLC"]
[null,null,"GRAY GLASS"]
[null,null,"GRAYBAR"]
[null,null,"GREAT LAKES INSTALLATION INC"]
[null,null,"GREAT NORTHERN CORP"]
[null,null,"GREEN BEAN PRODUCTS INC"]
[null,null,"GREEN FURNITURE CONCEPT INC"]
[null,null,"GREEN HOUSE DATA"]
[null,null,"GREEN MILL GLOBAL LLC"]
[null,null,"GREEN TOYS INC"]
[null,null,"GREENE FACILITY SERVICES LLC"]
[null,null,"GREENE MFG INC"]
[null,null,"GREENE RUBBER CO INC"]
[null,null,"GREENFIELD WORLD TRADE"]
[null,null,"GREENHOUSE PUBLICATIONS"]
[null,null,"GREENWINNER INDUSTRY CO LTD"]
[null,null,"GRESSCO LTD"]
[null,null,"GRIFFIN GREENHOUSE SUPPLIES INC"]
[null,null,"GROUPE LACASSE LLC"]
[null,null,"GROW WITH PLAY CORP"]
[null,null,"GROWERS SUPPLY CO"]
[null,null,"GSC INTL INC"]
[null,null,"GSK AUTISM LLC"]
[null,null,"GT GRANDSTANDS"]
[null,null,"GUADIANA CONSTRUCTION SERVICES"]
[null,null,"GUANGDONG FUHAI CULTURE TECHNOLOGY CO LTD"]
[null,null,"GUANGDONG FUHAI STATIONERY CO LTD"]
[null,null,"GUANGTU ELECTRONICS CO LTD"]
[null,null,"GUIDECRAFT USA"]
[null,null,"GULF TRANSPORT AND STORAGE"]
[null,null,"GULLICKSON, CHAD"]
[null,null,"GUY AND ONEILL INC"]
[null,null,"GV PRO TABLES"]
[null,null,"GYURKY, WILLIAM"]
[null,null,"H ARNOLD WOOD TURNING"]
[null,null,"HA GUDEN CO INC"]
[null,null,"HA STILES CO"]
[null,null,"HABA USA"]
[null,null,"HABERMEHL AND ASSOCIATES"]
[null,null,"HAFELE AMERICA CO"]
[null,null,"HALL, GREG"]
[null,null,"HAMILTON BEACH BRANDS INC"]
[null,null,"HAMILTON MEDICAL FURNITURE CORP"]
[null,null,"HAMMILL INSTITUTE ON DISABILITIES"]
[null,null,"HAMPTON FITNESS PRODUCTS"]
[null,null,"HANDI-THINGS LLC"]
[null,null,"HANDS ON OPTICS INC"]
[null,null,"HANDY ART INC"]
[null,null,"HANGER BOLT AND STUD CO INC"]
[null,null,"HANGZHOU STRONG MAGNET AND ASSEMBLY CO LTD"]
[null,null,"HANKS SPECIALTIES INC"]
[null,null,"HANN MANUFACTURING INC"]
[null,null,"HANNA INSTRUMENTS USA"]
[null,null,"HARDWIRE LLC"]
[null,null,"HAREBRAIN INC"]
[null,null,"HARKN TECHNOLOGIES INC"]
[null,null,"HARKOV, RONALD"]
[null,null,"HARPER COLLINS PUBLISHERS"]
[null,null,"HARRISVILLE DESIGNS INC"]
[null,null,"HARSON GLOBAL CO LTD"]
[null,null,"HARSON SPORTS CO LTD"]
[null,null,"HART ENTERPRISES INC"]
[null,null,"HASBRO INC"]
[null,null,"HASKELL OFFICE LLC"]
[null,null,"HASSEL MATERIAL HANDLING"]
[null,null,"HATTS INDUSTRIAL SUPPLIES INC"]
[null,null,"HAUSMANN INDUSTRIES INC"]
[null,null,"HAWAII ASSOC OF INDEPENDENT SCHOOLS"]
[null,null,"HAYDEN MCNEIL LLC"]
[null,null,"HAYS COMPANIES"]
[null,null,"HEAD PENN RACQUET SPORTS"]
[null,null,"HEARL MACHINE"]
[null,null,"HEART ZONES INC"]
[null,null,"HEATHROW SCIENTIFIC LLC"]
[null,null,"HEES DESIGNS INTL"]
[null,null,"HEIRLOOM CERAMICS"]
[null,null,"HELP/SYSTEMS LLC"]
[null,null,"HELPFUL HANDYMAN INSTALLATIONS"]
[null,null,"HEMCO CORP"]
[null,null,"HENRY OCCUPATIONAL THERAPY SERVICES INC"]
[null,null,"HERFF JONES INC"]
[null,null,"HERO ARTS INC"]
[null,null,"HERSHEY PAPER CO"]
[null,null,"HESKINS LLC"]
[null,null,"HEUSS PRINTING INC"]
[null,null,"HI5 FURNITURE INC"]
[null,null,"HICKORY BUSINESS FURNITURE LLC"]
[null,null,"HIGH POINT FURNITURE INDUSTRIES INC"]
[null,null,"HIGH QUALITY INSTALL"]
[null,null,"HIGHLAND PLASTICS INC"]
[null,null,"HIGHTOWER GROUP LLC"]
[null,null,"HILINE INC"]
[null,null,"HINTERLAND LTD"]
[null,null,"HIRSH INDUSTRIES LLC"]
[null,null,"HLF FURNITURE INC"]
[null,null,"HMS MFG CO"]
[null,null,"HO CHENG SAFETY ENTERPRISE CO LTD"]
[null,null,"HOEKSTRA, JOHN"]
[null,null,"HOG WILD LLC"]
[null,null,"HON CO"]
[null,null,"HONEYWELL ANALYTICS"]
[null,null,"HONEYWELL ANALYTICS INC"]
[null,null,"HONG FU TAI E-TECH SHENZHEN CO LTD"]
[null,null,"HONG, DON"]
[null,null,"HOOBEI USA INC"]
[null,null,"HOP INDUSTRIES CORP"]
[null,null,"HOPE PLASTICS CO INC"]
[null,null,"HORIZON FUEL CELL AMERICAS INC"]
[null,null,"HORIZON GROUP USA INC"]
[null,null,"HOUGHTON MIFFLIN HARCOURT PUBLISHING CO"]
[null,null,"HOUSE OF DOOLITTLE"]
[null,null,"HOUSTON INSTALLATION SERVICES INC"]
[null,null,"HOWBRITE SOLUTIONS"]
[null,null,"HOWDA DESIGNZ LLC"]
[null,null,"HRSE SERVICES LLC"]
[null,null,"HSM OF AMERICA LLC"]
[null,null,"HSP NATURE TOYS"]
[null,null,"HSU, THOMAS"]
[null,null,"HUG CONDON MOVING AND STORAGE CO INC"]
[null,null,"HUMAN KINETICS"]
[null,null,"HUMBOLDT MFG CO"]
[null,null,"HUMCO HOLDING GROUP INC"]
[null,null,"HUNTAR CO INC"]
[null,null,"HUSSEY SEATING CO"]
[null,null,"HUTCHINSON, ROBERT"]
[null,null,"HUTTON CORP"]
[null,null,"HUTZLER MFG CO INC"]
[null,null,"HWA NAN PLASTICS MFG IND LTD"]
[null,null,"HYDRA SPONGE CO INC"]
[null,null,"HYDRO-GARDENS"]
[null,null,"HYGLOSS PRODUCTS INC"]
[null,null,"HYPERKIN DBA DDR GAME"]
[null,null,"IC AND S DISTRIBUTING INC"]
[null,null,"ICEBERG ENTERPRISES LLC"]
[null,null,"ICP CONSTRUCTION INC"]
[null,null,"IDAHO STATE OF"]
[null,null,"IDENTITY GAMES INTERNATIONAL USA LLC"]
[null,null,"IDENTITY GROUP"]
[null,null,"IDLA ASSOCIATED LABELS DISTRIBUTION"]
[null,null,"IEG"]
[null,null,"IMA/DANIEL BRENNAN"]
[null,null,"IMAGABILITY INC"]
[null,null,"IMAGE FLOORING LLC"]
[null,null,"IMAGINATION STATION"]
[null,null,"IMAGINE THAT PLAYSYSTEMS LLC"]
[null,null,"IMPERIAL BAG AND PAPER CO INC"]
[null,null,"IMPERIAL HIGH SCHOOL GIRLS VOLLEYBALL"]
[null,null,"IMPERIAL WOODWORKS INC"]
[null,null,"IMPLUS CORP"]
[null,null,"INDEPENDENT HARDWARE INC"]
[null,null,"INDEPENDENT PUBLISHERS GROUP"]
[null,null,"INDEX PACKAGING INC"]
[null,null,"INDUSTRIAL COMMERCIAL SUPPLY"]
[null,null,"INDUSTRIAL FIBER OPTICS INC"]
[null,null,"INDUSTRIAL PLYWOOD INC"]
[null,null,"INDUSTRIAL TEST SYSTEMS INC"]
[null,null,"INDUSTRIAL WOOD PRODUCTS INC"]
[null,null,"INGRAM MICRO INC"]
[null,null,"INKWELL ENTERPRISES LLC"]
[null,null,"INNOBABY LLC"]
[null,null,"INNOVA-CHAMPION DISCS INC"]
[null,null,"INNOVATION SPECIALTIES"]
[null,null,"INNOVATIVE FULFILLMENT LLC"]
[null,null,"INNOVATIVE FULFILLMENT SERVICE LLC"]
[null,null,"INNOVATIVE INSTALLATION SOLUTIONS LLC"]
[null,null,"INNOVATIVE INSTALLATIONS LLC"]
[null,null,"INNOVATIVE MOVING SYSTEMS"]
[null,null,"INNOVATIVE PLASTICS CORP"]
[null,null,"INNOVATIVE POLYMER DESIGN LLC"]
[null,null,"INNOVATIVE PRODUCTS INC"]
[null,null,"INOVART INC"]
[null,null,"INSECT LORE PRODUCTS INC"]
[null,null,"INSITE MOTION INC"]
[null,null,"INSPERITY"]
[null,null,"INSPIRED MINDS LLC"]
[null,null,"INSTALLATION SPECIALIST LLC"]
[null,null,"INSTALLATION SPECIALISTS INC"]
[null,null,"INSTALLEX SYSTEMS INC"]
[null,null,"INSTALLNET"]
[null,null,"INSTALLRITE SYSTEMS"]
[null,null,"INSTALLZ OF MONTANA LLC"]
[null,null,"INSTITUTE FOR ADVANCED LEARNING AND REASEARCH"]
[null,null,"INSURANCE INSTITUTE FOR HIGHWAY SAFETY"]
[null,null,"INTEGRA"]
[null,null,"INTEGRATECH DISTRIBUTION"]
[null,null,"INTEGRATED GROUP LLC"]
[null,null,"INTEGRITY INSTALLATIONS INC"]
[null,null,"INTELEXIA USA LLC"]
[null,null,"INTER DYNE SYSTEMS"]
[null,null,"INTERCEPT LOGISTICS INC"]
[null,null,"INTERFACE AMERICAS INC"]
[null,null,"INTERIOR CONCEPTS CORP"]
[null,null,"INTERIOR GROUP INC"]
[null,null,"INTERNATIONAL COMMISSION ON ENGLISH IN THE LITURGY CORP"]
[null,null,"INTERNATIONAL LIGHT TECHNOLOGIES INC"]
[null,null,"INTERSTATE CONTAINER LOWELL LLC"]
[null,null,"INTIVITY INC"]
[null,null,"INTL SCIENTIFIC GROUP"]
[null,null,"INWOOD OFFICE FURNITURE INC"]
[null,null,"IOF BUSINESS FURNITURE MFG"]
[null,null,"IPI BY BISON"]
[null,null,"IPM SCIENTIFIC INC"]
[null,null,"IRIS USA INC"]
[null,null,"IROBOT CORPORATION"]
[null,null,"IRONWOOD MFG INC"]
[null,null,"IRWIN SEATING CO"]
[null,null,"ISRAEL ANDLER AND SONS INC"]
[null,null,"IWATA MEDEA INC"]
[null,null,"IWEB TECH INC"]
[null,null,"IXL LEARNING INC"]
[null,null,"J AND E SEATING LLC"]
[null,null,"J AND H PANEL INSTALLATION INC"]
[null,null,"J AND J MATERIAL HANDLING SYSTEMS INC"]
[null,null,"J2 CABINETRY AND TRIM LLC"]
[null,null,"JACK RICHESON AND CO INC"]
[null,null,"JACKSON CITY OF"]
[null,null,"JACOB HOLTZ CO"]
[null,null,"JACOBS MUSIC CO"]
[null,null,"JACOBSON PLASTICS INC"]
[null,null,"JAGUAR GRAPHICS AND PRINT"]
[null,null,"JAKEN CO INC"]
[null,null,"JAM PACKAGING CORP"]
[null,null,"JAM PLASTICS INC"]
[null,null,"JAMES THOMPSON AND CO INC"]
[null,null,"JAMESTOWN INDUSTRIES INC"]
[null,null,"JAMF SOFTWARE LLC"]
[null,null,"JAMMAR MFG CO INC"]
[null,null,"JANEVAL TOYS LLC"]
[null,null,"JARDEN HOME BRANDS"]
[null,null,"JASPER CHAIR CO INC"]
[null,null,"JAX LTD"]
[null,null,"JAYPRO SPORTS LLC"]
[null,null,"JC TOYS GROUP INC"]
[null,null,"JCS INSTALL"]
[null,null,"JER ASSOCIATES INC"]
[null,null,"JET CREATIONS INC"]
[null,null,"JEZ ENTERPRISES INC"]
[null,null,"JG EDELEN CO INC"]
[null,null,"JIM GIESE COMMERCIAL ROOFING INC"]
[null,null,"JKM MUSIC GROUP LLC"]
[null,null,"JL DARLING LLC"]
[null,null,"JLA FLOORS INC"]
[null,null,"JMJS INC DBA COE DISTIBUTING"]
[null,null,"JOAN F KAPLAN LIVING TRUST"]
[null,null,"JOBAR INTL INC"]
[null,null,"JOHANNES LIEDER"]
[null,null,"JOHN WILEY AND SONS INC"]
[null,null,"JOHNSON GAS APPLIANCE CO"]
[null,null,"JOHNSON LEVEL AND TOOL"]
[null,null,"JOHNSONS ON SITE DRAPERY CLEANING AND MORE LLC"]
[null,null,"JOKARI US INC"]
[null,null,"JONSON BROS ENTERPRISE CO LTD"]
[null,null,"JONTI CRAFT INC"]
[null,null,"JOSEPH LEEB ENTERPRISES LLC"]
[null,null,"JOSHUAS LLC"]
[null,null,"JOT STRONG OF GNORTS"]
[null,null,"JOY CARPETS INC"]
[null,null,"JOYLABZ LLC"]
[null,null,"JP MFG INC"]
[null,null,"JP PLASTICS INC"]
[null,null,"JS ENTERPRISES"]
[null,null,"JSCAPE LLC"]
[null,null,"JTC CONTRACTING INC"]
[null,null,"JTC INSTALLATIONS INC"]
[null,null,"JULIAS WORLD INC"]
[null,null,"JUMPSPORT INC"]
[null,null,"JUNIOR LEARNING INC"]
[null,null,"JUSON TECHNOLOGY CO LTD"]
[null,null,"JUSTRITE MFG CO LLC"]
[null,null,"JV INSTALLATION SERVICES"]
[null,null,"KAEMARK"]
[null,null,"KAMAN INDUSTRIAL TECHNOLOGIES"]
[null,null,"KANKAKEE SPIKEBALL INC"]
[null,null,"KANSAS WINDOW TINTING"]
[null,null,"KAPPA MAP GROUP LLC"]
[null,null,"KARI PRODUCTS HK CO LTD"]
[null,null,"KARNDEAN INTL LLC"]
[null,null,"KASE PRINTING INC"]
[null,null,"KATAN ENTERPRISES"]
[null,null,"KATHRYN SHORT AND ASSOCIATES"]
[null,null,"KATROU INC"]
[null,null,"KAUTI, CHRIS"]
[null,null,"KAY PARK-REC CORP"]
[null,null,"KAYE PRODUCTS INC"]
[null,null,"KAYLE CONCEPTS"]
[null,null,"KC BIN AND EQUIPMENT"]
[null,null,"KEARNEY MOVING SERVICE"]
[null,null,"KEEPER SPORTS PRODUCTS LLC"]
[null,null,"KELLER"]
[null,null,"KELLER-SELF COMMUNICATIONS"]
[null,null,"KELLY INTL CORP"]
[null,null,"KELPRO INC"]
[null,null,"KELVIN LP"]
[null,null,"KEMP ENTERPRISES INC"]
[null,null,"KEMP, KATHY"]
[null,null,"KEMPER ENTERPRISES INC"]
[null,null,"KEN A VISION MFG CO INC"]
[null,null,"KENNARD, WENDY"]
[null,null,"KENNETH HODKINSON REV TRUST"]
[null,null,"KENNINGTON, GLENN"]
[null,null,"KENT DISPLAYS INC"]
[null,null,"KETTLER INTL INC"]
[null,null,"KFI SEATING"]
[null,null,"KIDD SOLUTIONS INC"]
[null,null,"KIDDIES PARADISE INC"]
[null,null,"KIDDY GARDEN PRODUCTS CORP"]
[null,null,"KIDKRAFT LP"]
[null,null,"KIDMOJO"]
[null,null,"KIDO"]
[null,null,"KIDSTUFF PLAYSYSTEMS INC"]
[null,null,"KILN DOCTOR"]
[null,null,"KIMBO EDUCATIONAL"]
[null,null,"KINETIC FIT WORKS INC"]
[null,null,"KINGSLEY COMPANIES"]
[null,null,"KINNEY OFFICE INSTALLATIONS"]
[null,null,"KINPACK POLYETHYLENE"]
[null,null,"KIRKHILL MFG CO"]
[null,null,"KITTRICH CORP"]
[null,null,"KL SPECIALTIES LLC"]
[null,null,"KLEENSLATE CONCEPTS LP"]
[null,null,"KLEIN SPORTS LLC"]
[null,null,"KLING MAGNETICS INC"]
[null,null,"KNEX LTD PARTNERSHIP GROUP"]
[null,null,"KNORK FLATWARE"]
[null,null,"KNOWLEDGE BOOKS AND SOFTWARE"]
[null,null,"KNOWLEDGE UNLIMITED INC"]
[null,null,"KNUCKLES FLOORING INC"]
[null,null,"KOALA KARE PRODUCTS"]
[null,null,"KOALA TOOLS"]
[null,null,"KOLE IMPORTS INC"]
[null,null,"KOPLOW GAMES INC"]
[null,null,"KOROSEAL INTERIOR PRODUCTS LLC"]
[null,null,"KRUEGER INTL"]
[null,null,"KRUG INC"]
[null,null,"KUTOL PRODUCTS CO"]
[null,null,"KWIKBOOST LLC"]
[null,null,"L AND A LABORATORY INSTALLATIONS"]
[null,null,"L AND J LOCKER LLC"]
[null,null,"L AND M OFFICE FURNITURE LLC"]
[null,null,"L AND S VIDEO INC"]
[null,null,"L AND W CO LIMITED"]
[null,null,"LA BABY"]
[null,null,"LA CO INDUSTRIES INC"]
[null,null,"LA SIESTA INC"]
[null,null,"LA STEELCRAFT PRODUCTS INC"]
[null,null,"LAB CONNECTIONS"]
[null,null,"LAB CONNECTIONS-1"]
[null,null,"LAB-AIDS INC"]
[null,null,"LABCONCO CORP"]
[null,null,"LABEL HAUS INC"]
[null,null,"LABOUR READY"]
[null,null,"LAFAYETTE VENETIAN BLIND INC"]
[null,null,"LAGUNA CLAY CO"]
[null,null,"LAIRD PLASTICS INC"]
[null,null,"LAKELAND SUPPLY INC"]
[null,null,"LAKES COUNTRY SERVICE COOPERATIVE"]
[null,null,"LAKESIDE MFG INC"]
[null,null,"LAKEVIEW SHADE AND SCREEN LLC"]
[null,null,"LAMOTTE CO"]
[null,null,"LAND AIR EXPRESS"]
[null,null,"LANDSCAPE FORMS INC"]
[null,null,"LAPP ELECTRICAL SERVICE INC"]
[null,null,"LARLU"]
[null,null,"LAROSE INDUSTRIES LLC"]
[null,null,"LASER SERVICES INC"]
[null,null,"LATTAS"]
[null,null,"LAUNCHPAD MULTIMEDIA PTY LTD"]
[null,null,"LCR HALLCREST LLC"]
[null,null,"LEADER MANUFACTURING INC"]
[null,null,"LEAKTITE CORP"]
[null,null,"LEAP YEAR PUBLISHING LLC"]
[null,null,"LEARNING ADVANTAGE"]
[null,null,"LEARNING JOURNEY INTL"]
[null,null,"LEARNING LOFT INC"]
[null,null,"LEARNING RESOURCES INC"]
[null,null,"LEARNING SKILLS CO INC"]
[null,null,"LEARNING WITHOUT TEARS"]
[null,null,"LEARNING WRAP-UPS INC"]
[null,null,"LEDCO INC"]
[null,null,"LEDRAPLASTIC SPA"]
[null,null,"LEE PRODUCTS CO"]
[null,null,"LEECH PRODUCTS"]
[null,null,"LEGGETT AND PLATT INC"]
[null,null,"LEGION PAPER CORP"]
[null,null,"LEGRAND AV INC"]
[null,null,"LEOLA FASTENERS INC"]
[null,null,"LEONARD PETERSON AND CO INC"]
[null,null,"LESRO IND INC"]
[null,null,"LF COMPONENTS INC"]
[null,null,"LFJ SPORTING GOODS CO LTD"]
[null,null,"LH LICENSED PRODUCTS INC"]
[null,null,"LIBMAN COMPANY"]
[null,null,"LIBRARY DESIGN ASSOCIATES INC"]
[null,null,"LIFE TECHNOLOGIES CORP"]
[null,null,"LIFETIME BRANDS INC"]
[null,null,"LIGNUM VITAE NORTH AMERICA LLC"]
[null,null,"LILE INTL COMPANIES"]
[null,null,"LINDENMEYR MUNROE"]
[null,null,"LIQUI-MARK CORP"]
[null,null,"LISTEN INNOVATION INC"]
[null,null,"LITANIA SPORTS GROUP INC"]
[null,null,"LITE THE NITE TECHNOLOGIES"]
[null,null,"LITHTEX NORTHWEST LLC"]
[null,null,"LITTLE FOLK VISUALS"]
[null,null,"LITTLE KIDS INC"]
[null,null,"LITWIN, ERIC"]
[null,null,"LIVE OAK MEDIA"]
[null,null,"LKG INDUSTRIES INC"]
[null,null,"LOC SCIENTIFIC"]
[null,null,"LOGAN GRAPHIC PRODUCTS INC"]
[null,null,"LOGISTICS SUPPLY CORP"]
[null,null,"LONG DAR PLASTIC CO LTD"]
[null,null,"LONGMONT CITY OF"]
[null,null,"LORENZ CORP"]
[null,null,"LOUISIANA SCIENCE TEACHERS ASSOCIATION"]
[null,null,"LOVGREN AND ASSOCIATES"]
[null,null,"LR KALUPA CO"]
[null,null,"LRO STAFFING"]
[null,null,"LSC COMMUNICATIONS US LLC"]
[null,null,"LUKES TOY FACTORY"]
[null,null,"LUND EQUIPMENT CO INC"]
[null,null,"LUSTER LEAF PRODUCTS INC"]
[null,null,"LUXO CORP"]
[null,null,"LUXOR/H WILSON CO"]
[null,null,"LUXOUT PRODUCTS INC"]
[null,null,"LYNCH CONSTRUCTION LLC"]
[null,null,"LYNDEN AIR FREIGHT"]
[null,null,"LYON LLC"]
[null,null,"M AND A MATTING LLC"]
[null,null,"M AND MS COMMERCIAL FLOORING INC"]
[null,null,"M AND P WORLD POLYMER CO LTD"]
[null,null,"MACPHERSONS"]
[null,null,"MADISON POLYMERIC ENGINEERING"]
[null,null,"MAFCOTE INC"]
[null,null,"MAGFORMERS LLC"]
[null,null,"MAGIC PALETTE INC"]
[null,null,"MAGNA VISUAL INC"]
[null,null,"MAGNA-TILES"]
[null,null,"MAGNUSON GROUP"]
[null,null,"MAHAR MFG INC"]
[null,null,"MAHARAM FABRIC CORP"]
[null,null,"MAINE COAST SEA VEGETABLES INC"]
[null,null,"MAINTECH ENTERPRISES LTD"]
[null,null,"MANNINGTON MILLS INC"]
[null,null,"MANTA-RAY INC"]
[null,null,"MANTO INTL LTD"]
[null,null,"MANTRA LINGUA"]
[null,null,"MAPED HELIX USA INC"]
[null,null,"MARBLE KING INC"]
[null,null,"MAREK GROUP INC"]
[null,null,"MARLON CREATIONS INC"]
[null,null,"MARSH INDUSTRIES INC"]
[null,null,"MARSHALL BROWNING INTL CORP"]
[null,null,"MARSHALL PAPER TUBE CO"]
[null,null,"MARSHALLTOWN CO"]
[null,null,"MARSHFIELD CLINIC DBA CHR"]
[null,null,"MARTIN UNIVERSAL DESIGN INC"]
[null,null,"MARTIN YALE INDUSTRIES LLC"]
[null,null,"MARTIN/F WEBER CO"]
[null,null,"MARVEL EDUCATION CO"]
[null,null,"MARVEL GROUP INC"]
[null,null,"MARY MEYER CORP"]
[null,null,"MAS INC"]
[null,null,"MASON CORPORATION"]
[null,null,"MASTER LOCK CO LLC"]
[null,null,"MASTER MAGNETICS INC"]
[null,null,"MASTERPIECE ARTIST CANVAS LLC"]
[null,null,"MATATALAB CO LTD"]
[null,null,"MATTEL SALES CORP"]
[null,null,"MAVERICK DESK"]
[null,null,"MAVERICK INSTALLATIONS INC"]
[null,null,"MAXIM CO TAIWAN LTD"]
[null,null,"MAXX SEATING"]
[null,null,"MAYER FABRICS"]
[null,null,"MAYES BROTHERS TOOL MFG CO"]
[null,null,"MAYLINE"]
[null,null,"MAYNOVA INC"]
[null,null,"MAZON PRODUCTIONS INC"]
[null,null,"MBW OFFICE INSTALLATION INC"]
[null,null,"MCCOURT MFG"]
[null,null,"MCDONALD PUBLISHING CO"]
[null,null,"MCINTYRE GROUP OFFICE SERVICES INC"]
[null,null,"MCKESSON MEDICAL SURGICAL INC"]
[null,null,"MCKINNEY, JEANNE"]
[null,null,"MCLAUGHLIN, ROSEMARY"]
[null,null,"MCMASTER-CARR"]
[null,null,"MCRAE HILL CORP DBA MOJO EDUCATION"]
[null,null,"MCREL"]
[null,null,"MCS INDUSTRIES INC"]
[null,null,"MEDALLION FOREST PRODUCTS"]
[null,null,"MEDCO INSTRUMENTS INC"]
[null,null,"MEDIACAN INTL"]
[null,null,"MEDIATECHNOLOGIES"]
[null,null,"MEDICAL DATA CARRIER IM INC"]
[null,null,"MEDICAL SUPPLIES AND EQUIPMENT CO"]
[null,null,"MEDIFY AIR LLC"]
[null,null,"MEDSUPPLY PARTNERS"]
[null,null,"MEERSTRA, ALEX"]
[null,null,"MELAIMEE PRODUCTIONS"]
[null,null,"MELISSA AND DOUG LLC"]
[null,null,"MELLINGER MFG CO INC"]
[null,null,"MELODY HOUSE"]
[null,null,"MERCER TOOL CORP"]
[null,null,"MERCHANDISING PARTNERS LLC"]
[null,null,"MERNON PRECISION ELECTRONIC TECHNOLOGY CO LTD"]
[null,null,"MERRIAM-WEBSTER INC"]
[null,null,"MERRY MAKERS INC"]
[null,null,"MERRY THOUGHTS INC"]
[null,null,"MESA MOVING AND STORAGE"]
[null,null,"METALWORKING PRODUCTS CO"]
[null,null,"METAMETRICS INC"]
[null,null,"METRO INSTALLATION SERVICES INC"]
[null,null,"METRO LOCK SERVICE INC"]
[null,null,"METRO LTD BOWLERS ED"]
[null,null,"MF ATHLETIC"]
[null,null,"MGA ENTERTAINMENT INC"]
[null,null,"MICHIGAN BASIN EXPLORATION LLC"]
[null,null,"MICRO ESSENTIAL LABORATORY"]
[null,null,"MICRO PLASTICS INC"]
[null,null,"MICRO WIRE PRODUCTS INC"]
[null,null,"MICROLOGY LABORATORIES LLC"]
[null,null,"MID AMERICA PROTOTYPING INC"]
[null,null,"MID OHIO MECHANICAL SERVICES LLC"]
[null,null,"MIDLAND RADIO CORP"]
[null,null,"MIDLANTIC PALLET"]
[null,null,"MIDSTATE TOOL AND SUPPLY INC"]
[null,null,"MIDSTATES FLOORING CENTER"]
[null,null,"MIEN CO"]
[null,null,"MIKASA SPORTS USA"]
[null,null,"MILES CONSTRUCTION"]
[null,null,"MILESTONE AV TECHNOLOGIES LLC"]
[null,null,"MILITARY AND COMMERCIAL FASTENERS CORP"]
[null,null,"MILLER GROUP"]
[null,null,"MILLER, BECKY"]
[null,null,"MILWAUKEE TOOL AND EQUIPMENT CO INC"]
[null,null,"MINDWARE WHOLESALE"]
[null,null,"MINILAND EDUCATIONAL CORP"]
[null,null,"MINNESOTA SERVICE COOPERATIVES"]
[null,null,"MINT MASTERS INC"]
[null,null,"MIRA MATH CO"]
[null,null,"MIRA PLASTICS CO INC"]
[null,null,"MIRACLE EXCLUSIVES"]
[null,null,"MIRU INDUSTRIAL CO LTD"]
[null,null,"MISSISSIPPI PUBLISHERS ASSOCIATION"]
[null,null,"MISSOURI BOTANICAL GARDEN"]
[null,null,"MITCHELL FURNITURE SYSTEMS INC"]
[null,null,"MITY-LITE INC"]
[null,null,"MMF INDUSTRIES"]
[null,null,"MMR LEARNING ENTERPRISES LLC"]
[null,null,"MOBILIZE RESCUE SYSTEMS"]
[null,null,"MOCAP"]
[null,null,"MODERNISTIC"]
[null,null,"MODERNMINI LLC"]
[null,null,"MODULAR INSTALLATION SERVICES INC"]
[null,null,"MODULAR INTERIORS INC"]
[null,null,"MODULAR ROBOTICS INC"]
[null,null,"MOEWORKS LLC"]
[null,null,"MOMENTUM GROUP"]
[null,null,"MONACO LLC"]
[null,null,"MONDO AMERICA INC"]
[null,null,"MONKEY BUSINESS SPORTS"]
[null,null,"MONTER TOYS CO LTD"]
[null,null,"MONTISA"]
[null,null,"MOORE, KAREN"]
[null,null,"MOORECO INC"]
[null,null,"MORGAN GAYNIN INC"]
[null,null,"MORNING SOUND INDUSTRIES CO LTD"]
[null,null,"MOTION INDUSTRIES"]
[null,null,"MOUNTAIN WEST MOVING AND STORAGE"]
[null,null,"MOUSER ELECTRONICS INC"]
[null,null,"MOVE FOR FUN LLC"]
[null,null,"MOVE SOLUTIONS LTD"]
[null,null,"MOVING SOLUTIONS INC"]
[null,null,"MOX-E CREATIVE INC"]
[null,null,"MP SPORTS GROUP INC"]
[null,null,"MPC INC"]
[null,null,"MPS"]
[null,null,"MR CHIPS INC"]
[null,null,"MR INSTALLATION LLC"]
[null,null,"MSC INDUSTRIAL SUPPLY CO"]
[null,null,"MT EVEREST MOVING CO INC"]
[null,null,"MTGS ENTERPRISES LLC"]
[null,null,"MTS SEATING"]
[null,null,"MULLARKYS INC DBA LATTAS"]
[null,null,"MULTI WALL PACKAGING DIV OF PREMARK PACKAGING LLC"]
[null,null,"MURPHY AND READ SPRING MFG CO INC"]
[null,null,"MUSGRAVE PENCIL CO INC"]
[null,null,"MUSIC WITH MAR LLC"]
[null,null,"MY OFFICE INC"]
[null,null,"MY POOL PAL CO LLC"]
[null,null,"MYLEC INC"]
[null,null,"N CALIFORNIA INSTALLATION SERVICES"]
[null,null,"NADA SCIENTIFIC LTD"]
[null,null,"NALGE NUNC INTL"]
[null,null,"NAMEPLATES FOR INDUSTRY INC"]
[null,null,"NAP GLADU / NAP ASSET HOLDINGS LTD"]
[null,null,"NATCO PRODUCTS CORP"]
[null,null,"NATIONAL ABRASIVES INC"]
[null,null,"NATIONAL BAND AND TAG CO"]
[null,null,"NATIONAL BOOK NETWORK"]
[null,null,"NATIONAL CHILDRENS MUSEUM"]
[null,null,"NATIONAL DIVERSIFIED SALES"]
[null,null,"NATIONAL GEOGRAPHIC MAPS"]
[null,null,"NATIONAL GEOGRAPHIC TELEVISION"]
[null,null,"NATIONAL MUSEUM OF EDUCATION"]
[null,null,"NATIONAL OFFICE FURNITURE INC"]
[null,null,"NATIONAL OFFICE SERVICES"]
[null,null,"NATIONAL OPTICAL AND SCIENTIFIC INSTRUMENT INC"]
[null,null,"NATIONAL POLYMERS/ NATIONAL MEASURES"]
[null,null,"NATIONAL PUBLIC SEATING"]
[null,null,"NATIONAL PUBLIC SEATING CORP"]
[null,null,"NATIONAL RECREATION SYSTEMS INC"]
[null,null,"NATIONAL WORKPLACE SERVICES"]
[null,null,"NATURE PRINT PAPER INC"]
[null,null,"NATURES PRESSED INC"]
[null,null,"NAXOS OF AMERICA INC"]
[null,null,"NEA MANUFACTURING CORP"]
[null,null,"NECI"]
[null,null,"NEEDAK MANUFACTURING LLC"]
[null,null,"NEENAH PAPER INC"]
[null,null,"NEIL ENTERPRISES INC"]
[null,null,"NELSON ADAMS NACO CORP"]
[null,null,"NELSON B BOONE CO"]
[null,null,"NEO CABINET INC"]
[null,null,"NEW ENGLAND CHEESEMAKING SUPPLY CO INC"]
[null,null,"NEW ENGLAND DUPLICATOR INC"]
[null,null,"NEW ENGLAND RESIN AND PIGMENTS"]
[null,null,"NEW ENGLAND WOODEN WARE CORP"]
[null,null,"NEW HAMPSHIRE STAMPING CO INC"]
[null,null,"NEW IMAGE GROUP"]
[null,null,"NEW JERSEY COUNCIL FOR EXCEPTIONAL CHILDREN"]
[null,null,"NEW MEXICO SPECIALTIES"]
[null,null,"NEW PRINTING"]
[null,null,"NEW SCHOOL MUSIC"]
[null,null,"NEW YORK BLACKBOARD OF NJ INC"]
[null,null,"NEW YORK UNIVERSITY"]
[null,null,"NEWMARK LEARNING LLC"]
[null,null,"NEWPATH LEARNING LLC"]
[null,null,"NEX-TERRA"]
[null,null,"NEXTEP INC"]
[null,null,"NGUYEN, ANH"]
[null,null,"NICE PAK PRODUCTS INC"]
[null,null,"NICEPOINT ELECTRONIC LTD"]
[null,null,"NICEPORT INDUSTRIAL LTD"]
[null,null,"NICKS WINDOW TINT AND AUTO DETAIL"]
[null,null,"NIDEC-SHIMPO AMERICA CORP"]
[null,null,"NILES BIOLOGICAL INC"]
[null,null,"NILODOR INC"]
[null,null,"NINGBO BATTERY AND ELECTRICAL"]
[null,null,"NINGBO BUD STATIONERY MFG CO LTD"]
[null,null,"NINGBO G AND W IMP AND EXP CO LTD"]
[null,null,"NINGBO MICLINK TECHNOLGE CO LTD"]
[null,null,"NINGBO WEISHU STATIONERY CO LTD"]
[null,null,"NINGBO YINZHOU JOIN INDUSTRY CO LTD"]
[null,null,"NINGBO YT STATIONERY CO LTD"]
[null,null,"NINGHAI HUIHUI STATIONERY CO LTD"]
[null,null,"NINGHAI TAISEN STATIONARY CO LTD"]
[null,null,"NISHI ATHLETIC GOODS"]
[null,null,"NOR EASTER INSTALLATION INC"]
[null,null,"NOR-CAL MOVING SERVICES"]
[null,null,"NORCOSTCO INC"]
[null,null,"NORDSON MEDICAL"]
[null,null,"NORSONS INDUSTRIES LLC"]
[null,null,"NORTH AMERICAN"]
[null,null,"NORTH AMERICAN PLYWOOD CORP"]
[null,null,"NORTH AMERICAN RESCUE LLC"]
[null,null,"NORTH CAROLINA SCIENCE TEACHERS ASSOC"]
[null,null,"NORTH DAKOTA COUNCIL OF EDUCATIONAL LEADERS"]
[null,null,"NORTH DAKOTA EDUCATORS SERVICE COOPERATIVE"]
[null,null,"NORTH DAKOTA STATE TAX COMMISSIONER"]
[null,null,"NORTH PARK INNOVATIONS GROUP INC"]
[null,null,"NORTH STAR EQUIPMENT INC"]
[null,null,"NORTH STAR TEACHER RESOURCES"]
[null,null,"NORTH WEST RUBBER MATS LTD"]
[null,null,"NORTHEAST POLY BAG CO"]
[null,null,"NORTHERN ILLINOIS SCIENCE EDUCATORS"]
[null,null,"NORWOOD HOUSE PRESS"]
[null,null,"NOTIONS MARKETING CORP"]
[null,null,"NOTTINGHAM TRENT UNIVERSITY"]
[null,null,"NOVEL PRODUCTS INC"]
[null,null,"NRG ASSOCIATES LLC"]
[null,null,"NSI INTL"]
[null,null,"NUDO-MIDWEST FOLDING PRODUCTS"]
[null,null,"NUMBERS LLC DBA NUMBERSALIVE"]
[null,null,"NURIBOM CO LTD"]
[null,null,"OAK HARBOUR MARKETING LTD"]
[null,null,"OAKLEY, KATHRYN"]
[null,null,"OBEE CONTAINERS"]
[null,null,"ODDLYEVEN"]
[null,null,"OF INSTALLATIONS LLC"]
[null,null,"OFFICE FORMATIONS"]
[null,null,"OFFICE FURNITURE TRANSPORT INC"]
[null,null,"OFFICE INNOVATIONS"]
[null,null,"OFFICE INSIGHTS INC"]
[null,null,"OFFICE INSTALLATION CO"]
[null,null,"OFFICE INSTALLATION SERVICES AND DESIGN"]
[null,null,"OFFICE INSTALLATION SERVICES INC"]
[null,null,"OFFICE MASTER INC"]
[null,null,"OFFICE MOVE PRO"]
[null,null,"OFFICE MOVERS OF FLORIDA LLC"]
[null,null,"OFFICE PROFESSIONALS"]
[null,null,"OFFICE STAR PRODUCTS"]
[null,null,"OFFICE SYSTEMS INSTALLATION LLC"]
[null,null,"OFFICE SYSTEMS INSTALLATION LLC-1"]
[null,null,"OFFICE SYSTEMS INSTALLATIONS"]
[null,null,"OFFICE SYSTEMS INSTALLATIONS INC"]
[null,null,"OFFICEMATE LLC"]
[null,null,"OFFICEWISE FURNITURE AND SUPPLY"]
[null,null,"OFFSITE OFFICE EQUIPMENT STORAGE"]
[null,null,"OFM LLC"]
[null,null,"OFR INC"]
[null,null,"OFS BRANDS INC"]
[null,null,"OGOSPORT LLC"]
[null,null,"OHAUS CORP"]
[null,null,"OKLAHOMA SOUND CORP"]
[null,null,"OLLA LLC DBA PICKLEBALL WHOLESALE"]
[null,null,"OLMSTEAD, BRAD"]
[null,null,"OLYMPIA MOVING AND STORAGE"]
[null,null,"OLYMPIA SPORTS"]
[null,null,"OMNICOR INC"]
[null,null,"OMNIKIN INC"]
[null,null,"ONCOURT OFFCOURT"]
[null,null,"ONEPOINTE SOLUTIONS LLC"]
[null,null,"ONEUP INNOVATIONS INC"]
[null,null,"OPE NIEMEYER FLOORING"]
[null,null,"ORACLE BUILDING CONTRACTORS LLC"]
[null,null,"ORBIS CORP"]
[null,null,"OREGON HEAD START ASSOC"]
[null,null,"ORIGINAL E-Z GRADER CORP"]
[null,null,"ORIGINAL SEAT SACK CO"]
[null,null,"ORIGINAL TOY CO"]
[null,null,"ORION SCIENTIFIC"]
[null,null,"ORNAMENTAL PRODUCTS TOOL AND SUPPLY INC"]
[null,null,"ORTHO ORGANIZERS INC"]
[null,null,"ORTRONICS INC"]
[null,null,"OSHKOSH TENT AND AWNING CO INC"]
[null,null,"OTVEST LLC"]
[null,null,"OUTWATER PLASTICS INDUSTRIES INC"]
[null,null,"OVERSEAS BROKERS INC"]
[null,null,"P A HUTCHISON COMPANY"]
[null,null,"P AND M INSTALLATION SERVICE AND SALES"]
[null,null,"P AND M TREASURE COAST INSTALLATION INC"]
[null,null,"P AND W GOLF SUPPLY LLC"]
[null,null,"PAASCHE AIRBRUSH CO"]
[null,null,"PACIFIC FLOORING SUPPLY"]
[null,null,"PACIFIC PACKAGING PRODUCTS INC"]
[null,null,"PACIFIC PLAY TENTS INC"]
[null,null,"PACKAGING HOUSE INC"]
[null,null,"PAINE PRODUCTS INC"]
[null,null,"PALADIN CASEWORKS INC"]
[null,null,"PALMER HAMILTON LLC"]
[null,null,"PAN PACIFIC SOURCING LLC"]
[null,null,"PANEL PROCESSING INC"]
[null,null,"PANEL SYSTEMS PLUS INC"]
[null,null,"PANELCRAFT INC"]
[null,null,"PAOLI CLAY CO INC"]
[null,null,"PAPER MAGIC GROUP INC"]
[null,null,"PARAGON FURNITURE INC"]
[null,null,"PARAGON INDUSTRIES"]
[null,null,"PARK AND SUN SPORTS"]
[null,null,"PARK CITY ENTERTAINMENT INC"]
[null,null,"PARTHEUM INC"]
[null,null,"PARTY ART LTD"]
[null,null,"PASCO SCIENTIFIC"]
[null,null,"PATHWAYS FOR LEARNING PRODUCTS INC"]
[null,null,"PATRICK INDUSTRIES INC"]
[null,null,"PATTERSON FAN CO INC"]
[null,null,"PATTERSON PRINTING"]
[null,null,"PAXEN PUBLISHING LLC"]
[null,null,"PAXTON VAN LINES DBA PAXTON CO OFFICE MOVING DIVISION"]
[null,null,"PBS DISTRIBUTION LLC"]
[null,null,"PCI FLORTECH INC"]
[null,null,"PCS EDVENTURES INC"]
[null,null,"PDPLAY"]
[null,null,"PDQ INSTALLATION CO LLC"]
[null,null,"PDU CAT"]
[null,null,"PEAG LLC DBA JLAB AUDIO"]
[null,null,"PEARSON AUSTRALIA GROUP"]
[null,null,"PEBEO INC"]
[null,null,"PEERLESS PLASTICS"]
[null,null,"PELLETS INC"]
[null,null,"PELSTAR LLC"]
[null,null,"PENCIL AND STATIONERY PRODUCTS MANUFACTURERS INC"]
[null,null,"PENCIL GRIP INC"]
[null,null,"PENGUIN RANDOM HOUSE LLC"]
[null,null,"PENN-PLAX INC"]
[null,null,"PENTEL OF AMERICA LTD"]
[null,null,"PEOPLEREADY INC"]
[null,null,"PEOPLES EDUCATION INC"]
[null,null,"PEPPERELL BRAIDING CO"]
[null,null,"PERCOLOUR SUZHOU POLYMER MATERIALS CO LTD"]
[null,null,"PERFECTION LEARNING CORP"]
[null,null,"PERFORMANCE HEALTH"]
[null,null,"PERPETUAL ENTERPRISES"]
[null,null,"PERSONAL TOUCH INSTALLATIONS INC"]
[null,null,"PETA UK LTD"]
[null,null,"PETER FORG MFG CO"]
[null,null,"PETER PAN NOVELTY COMPANY INC"]
[null,null,"PETERSON, CORY"]
[null,null,"PETRO PACKAGING CO INC"]
[null,null,"PETTY CASH-DELTA"]
[null,null,"PG GOLF LLC"]
[null,null,"PHILLIPS PET FOOD AND SUPPLIES"]
[null,null,"PHILLIPS, JAMES R"]
[null,null,"PHIT AMERICA"]
[null,null,"PHONESUIT INC"]
[null,null,"PICK-A-PADDLE INC"]
[null,null,"PICKLE-BALL INC"]
[null,null,"PIECES OF LEARNING INC"]
[null,null,"PILOT CORP OF AMERICA"]
[null,null,"PINE STATE TRADING CO"]
[null,null,"PIONEER CONTRACT SERVICES INC"]
[null,null,"PIONEER NATIONAL LATEX INC"]
[null,null,"PIONEER PLASTICS INC"]
[null,null,"PLAID ENTERPRISES INC"]
[null,null,"PLAK SMACKER"]
[null,null,"PLANES MOVING AND STORAGE INC"]
[null,null,"PLANO MOLDING CO"]
[null,null,"PLANTATION PRESTIGE COMMERCIAL FURNITURE"]
[null,null,"PLANTOYS INC"]
[null,null,"PLASMART INC"]
[null,null,"PLASTEEL CORP"]
[null,null,"PLASTIC BOTTLES INC"]
[null,null,"PLASTICANT-MOBILO"]
[null,null,"PLASTIPRO CANADA LTD"]
[null,null,"PLAY VISIONS"]
[null,null,"PLAYHUT INC"]
[null,null,"PLAYMONSTER LLC"]
[null,null,"PLAYPOWER LT FARMINGTON INC"]
[null,null,"PLAYWORLD SYSTEMS"]
[null,null,"PLYMOUTH PACKAGING INC"]
[null,null,"PM CLIMBING SYSTEMS"]
[null,null,"PM FASTENERS INC"]
[null,null,"PMCO LLC"]
[null,null,"POINT LOAD CONSTRUCTION"]
[null,null,"POINTE INTL CO"]
[null,null,"POLAR ELECTRO INC"]
[null,null,"POLY ENTERPRISES INC"]
[null,null,"POLY-JECT INC"]
[null,null,"POLYDRON UK LIMITED"]
[null,null,"POLYFORM PRODUCTS CO"]
[null,null,"POLYMERSHAPES LLC"]
[null,null,"POLYPLEX USA LLC"]
[null,null,"POLYSTYRENE PRODUCTS CO INC"]
[null,null,"POOF-SLINKY LLC"]
[null,null,"POPULAS FURNITURE BY ADAS"]
[null,null,"PORTLAND PLASTIC PIPE"]
[null,null,"PORTLAND POTTERY SUPPLY"]
[null,null,"POST APPLE SCIENTIFIC INC"]
[null,null,"POWER ADHESIVES"]
[null,null,"POWER DISTRIBUTORS LLC"]
[null,null,"POWER SYSTEMS PS LLC"]
[null,null,"POWER TECHNOLOGY INC"]
[null,null,"PRADERE OFFICE PRODUCTS"]
[null,null,"PRECISION INDUSTRIAL SERVICES"]
[null,null,"PRECISION INSTALLATION SERVICES INC"]
[null,null,"PRECISION LABORATORIES INC"]
[null,null,"PRECISION MOULDED POLYMERS LTD"]
[null,null,"PRECISION OFFICE INSTALLERS INC"]
[null,null,"PRECISION PLAYGROUNDS"]
[null,null,"PREMIER BUSINESS SOLUTIONS INC"]
[null,null,"PREMIER CABINETS"]
[null,null,"PREMIER GRAPHICS"]
[null,null,"PREMIER SOUTHERN TICKET CO"]
[null,null,"PREMIER SYSTEMS SERVICES INC"]
[null,null,"PREMIERE STAGE SUPPLY LLC"]
[null,null,"PRES-ON CORPORATION"]
[null,null,"PRESSMAN TOY CORP"]
[null,null,"PRESTIGE PAINTING AND DECORATING"]
[null,null,"PREVENTIVE DENTAL SPECIALTIES"]
[null,null,"PRICE MASTER CORP"]
[null,null,"PRIMARY CONCEPTS"]
[null,null,"PRIMARY CONCEPTS INC"]
[null,null,"PRIMO INTERNATIONAL"]
[null,null,"PRINCETON ART AND BRUSH CO"]
[null,null,"PRINTROC INC"]
[null,null,"PRO FURNITURE INSTALLATION LLC"]
[null,null,"PRO-ED INC"]
[null,null,"PRODUCT RESOURCES"]
[null,null,"PRODUCTIVE ALTERNATIVES INC"]
[null,null,"PROEDGE BLADES"]
[null,null,"PROFESSIONAL BUSINESS INSTALLATIONS LLC"]
[null,null,"PROFESSIONAL INSTALLERS INC"]
[null,null,"PROFESSIONAL MODULAR INSTALLATIONS"]
[null,null,"PROFESSIONAL MODULAR INSTALLATIONS LLC"]
[null,null,"PROLAM PRODUCTS INC"]
[null,null,"PROLUME LTD"]
[null,null,"PROMAXIMA MFG LTD"]
[null,null,"PROMETHEAN INC"]
[null,null,"PROMIC TECHNOLOGY CO LTD"]
[null,null,"PROMOTIONAL DESIGNS INC"]
[null,null,"PROSOLUTIONS INC"]
[null,null,"PROVO CRAFT AND NOVELTY INC"]
[null,null,"PS FURNITURE INC"]
[null,null,"PS INSTALLATIONS INC"]
[null,null,"PULIZ MOVING AND STORAGE"]
[null,null,"PULL BUOY INC"]
[null,null,"PUNKINFUTZ LLC"]
[null,null,"PUPPET CO LLC"]
[null,null,"PURITAN PRESS INC"]
[null,null,"PUTNAM CO INC"]
[null,null,"PUTUMAYO WORLD MUSIC INC"]
[null,null,"PUZZLED INC"]
[null,null,"PW ATHLETIC MFG CO"]
[null,null,"PYRAMID DESIGNS LLC"]
[null,null,"Q1S LLC"]
[null,null,"Q3 ENTERPRISES LLC"]
[null,null,"QED FOUNDATION INC"]
[null,null,"QFUSION LABS"]
[null,null,"QINGDAO XIN SANHONG PLASTIC PRODUCTS CO LTD"]
[null,null,"QP INTERNATIONAL LTD"]
[null,null,"QUAD GRAPHICS INC"]
[null,null,"QUAD GRAPHICS PRINTING CORP"]
[null,null,"QUAFTY INC/JONSON BROS"]
[null,null,"QUALIFIED SYSTEMS INSTALLATIONS INC"]
[null,null,"QUALITY COMPUTER ACCESSORIES INC"]
[null,null,"QUALITY FILTERS INC"]
[null,null,"QUALITY FURNITURE INSTALLATION INC"]
[null,null,"QUALITY INSTALLATIONS INC"]
[null,null,"QUALITY INSTALLERS LLC"]
[null,null,"QUALITY MAIL MARKETING INC"]
[null,null,"QUALITY PARK PRODUCTS"]
[null,null,"QUALITY SYSTEMS INSTALLATION"]
[null,null,"QUANTUM STORAGE SYSTEMS"]
[null,null,"QUANTUM TECHNOLOGY INC"]
[null,null,"QUARASAN GROUP INC"]
[null,null,"QUESTION OF BALANCE INC"]
[null,null,"QUICKSCREWS INTL CORP"]
[null,null,"QUINCY LAB INC"]
[null,null,"R AND B WHOLESALE DISTRIBUTORS INC"]
[null,null,"R AND H SYSTEMS INC"]
[null,null,"R AND R LOCKER LLC"]
[null,null,"R AND T MECHANICAL INC"]
[null,null,"R AND W ENTERPRISES"]
[null,null,"R INSTALL CO"]
[null,null,"R82 INC"]
[null,null,"RACE, ELISA"]
[null,null,"RADIO FLYER INC"]
[null,null,"RAINBOW BALLOONS INC"]
[null,null,"RAINBOW MOVERS INC"]
[null,null,"RAINBOW SYMPHONY"]
[null,null,"RANACO CORP"]
[null,null,"RAND MCNALLY"]
[null,null,"RAND WHITNEY CONTAINER LLC"]
[null,null,"RANKIM INSTALLATIONS LLC"]
[null,null,"RAVENSBURGER USA INC"]
[null,null,"RAYLABCON INC"]
[null,null,"RAYMOND PRODUCTS"]
[null,null,"RAYNOR MARKETING LTD"]
[null,null,"RB RUBBER PRODUCTS INC"]
[null,null,"RC BRAYSHAW AND CO INC"]
[null,null,"RC PRECISION INSTALLATIONS INC"]
[null,null,"RCB SPECIALTIES INC"]
[null,null,"RCS RMC INC"]
[null,null,"READY 2 TRANSPORT LLC"]
[null,null,"READYOP COMMUNICATIONS INC"]
[null,null,"RED MILL GRAPHICS INC"]
[null,null,"REDBARN ENTERPRISES INC"]
[null,null,"REDDING PRINTING CO INC"]
[null,null,"REEDS INSTALLATIONS INC"]
[null,null,"REGION 16 EDUCATION SERVICE CENTER"]
[null,null,"REGIONAL INCOME TAX AGENCY"]
[null,null,"REIMERS FURNITURE MFG INC"]
[null,null,"REINRAG SCIENTIFIC LLC"]
[null,null,"RELEVANT PLAY"]
[null,null,"RELIABLE OFFICE SOLUTIONS INC"]
[null,null,"RELIABLE PRODUCTS MANUFACTURING"]
[null,null,"REMEDIA PUBLICATIONS"]
[null,null,"RENA OEM SALES"]
[null,null,"RENNER WOOD COATINGS"]
[null,null,"RENTACRATE ENTERPRISES"]
[null,null,"REPLOGLE GLOBES PARTNERS LLC"]
[null,null,"RESILITE SPORTS PRODUCTS INC"]
[null,null,"REVERED BUILDERS LLC"]
[null,null,"REVOLUTIONARY SCIENCE"]
[null,null,"RHODE ISLAND ASSOC OF DIRECTORS SCHOOL MAINTENANCE"]
[null,null,"RHODE ISLAND NOVELTY"]
[null,null,"RHYTHM BAND INSTRUMENTS LLC"]
[null,null,"RICE PACKAGING INC"]
[null,null,"RICH ART COLOR"]
[null,null,"RICHLAND NEWHOPE IND INC"]
[null,null,"RIDGEWOOD PUBLIC SCHOOLS"]
[null,null,"RIEGLE PRESS INC"]
[null,null,"RIGHTANGLE PRODUCTS"]
[null,null,"RITECO INC"]
[null,null,"RITTERS OFFICE OUTFITTERS"]
[null,null,"RJ INC"]
[null,null,"RJ SCHINNER CO INC"]
[null,null,"ROADRUNNER MOVING AND STORAGE"]
[null,null,"ROARING SPRING PAPER PRODUCTS"]
[null,null,"ROBINSON HOME PRODUCTS"]
[null,null,"ROGAN CORP"]
[null,null,"ROGER TORY INSTITUTE"]
[null,null,"ROGERS FLOOR COVERING"]
[null,null,"ROLF C HAGEN USA CORP"]
[null,null,"ROMANOFF PRODUCTS INC"]
[null,null,"ROMANOW CONTAINER"]
[null,null,"ROOM COPENHAGEN INC"]
[null,null,"ROSE CITY MOVING AND STORAGE"]
[null,null,"ROSE MOON INC"]
[null,null,"ROUND WORLD PRODUCTS INC"]
[null,null,"ROYAL BRUSH MFG INC"]
[null,null,"ROYAL CONSUMER PRODUCTS LLC"]
[null,null,"ROYAL MOVING AND STORAGE OTTAWA INC"]
[null,null,"ROYAL OAK ENTERPRISES LLC"]
[null,null,"ROYAL SEATING LLC-1"]
[null,null,"ROYAL STEEL BALL PRODUCTS INC"]
[null,null,"ROYLCO INC"]
[null,null,"RP COATINGS INC"]
[null,null,"RPL INTL INC"]
[null,null,"RPM INC"]
[null,null,"RR DONNELLEY"]
[null,null,"RSL MANUFACTURING"]
[null,null,"RTA PLAYGROUNDS"]
[null,null,"RUBBER INDUSTRIES INC"]
[null,null,"RUBBERMAID COMMERCIAL PRODUCTS"]
[null,null,"RUBBERMAID INC DBA CONSUMER PRODUCTS"]
[null,null,"RUBBO INTL INC"]
[null,null,"RUPERT GIBBON AND SPIDER INC"]
[null,null,"RUSH UNIVERSITY MEDICAL CENTER"]
[null,null,"RUSS INVISION"]
[null,null,"RUSSELL BRANDS LLC"]
[null,null,"RW ACQUISITION LLC"]
[null,null,"S AND S HOME INSPECTIONS LLC"]
[null,null,"S AND S WORLDWIDE INC"]
[null,null,"SABIC POLYMERSHAPES"]
[null,null,"SADDLEBACK EDUCATIONAL PUBLISHING INC"]
[null,null,"SAFARI LTD"]
[null,null,"SAFCO PRODUCTS CO"]
[null,null,"SAFE SCHOOLS FOR NAPA VALLEY UNIFIED-YES ON H 2016"]
[null,null,"SAFECROSS FIRST AID LTD"]
[null,null,"SAFETY DOWN UNDER INC"]
[null,null,"SAGE PUBLICATIONS INC"]
[null,null,"SAINT-GOBAIN ABRASIVES INC"]
[null,null,"SAKURA OF AMERICA"]
[null,null,"SALIX CORP"]
[null,null,"SALLY LOO CREATIVE TIMES"]
[null,null,"SAM LABS INC"]
[null,null,"SAMSILL CORP"]
[null,null,"SAMSON FASTENER CO INC"]
[null,null,"SAN DIEGO STATE UNIVERSITY"]
[null,null,"SANDEEN INC"]
[null,null,"SANDLOCK SANDBOX LLC"]
[null,null,"SANDRA ADAMS REVOCABLE TRUST"]
[null,null,"SANDTASTIK PRODUCTS"]
[null,null,"SANDUSKY BUDDY CORP"]
[null,null,"SANDUSKY LEE CORP"]
[null,null,"SANDY SPIN SLADE INC"]
[null,null,"SANFORD CONTRACTING INC"]
[null,null,"SANFORD LP"]
[null,null,"SANITIZER PLUS"]
[null,null,"SARAL PAPER CORP"]
[null,null,"SARGENT ART"]
[null,null,"SARGENT WELCH"]
[null,null,"SARIS CYCLING GROUP"]
[null,null,"SASSY 14 LLC"]
[null,null,"SASSY BABY INC"]
[null,null,"SATURNIAN I INC"]
[null,null,"SAUNDERS"]
[null,null,"SAUNDERS MIDWEST LLC"]
[null,null,"SAVAGE UNIVERSAL CORP"]
[null,null,"SAVIN PRODUCTS CO INC"]
[null,null,"SAVOIR-FAIRE"]
[null,null,"SAY IT RIGHT"]
[null,null,"SCC CUSTOM MOLDING LLC"]
[null,null,"SCHACHT SPINDLE CO INC"]
[null,null,"SCHALOW MFG CO"]
[null,null,"SCHELLING AMERICA INC"]
[null,null,"SCHKIDULES"]
[null,null,"SCHLESSINGER MEDIA"]
[null,null,"SCHLOSSER, KEITH"]
[null,null,"SCHOLAR CRAFT PRODUCTS INC"]
[null,null,"SCHOLASTIC INC"]
[null,null,"SCHOLASTIC LIBRARY PUBLISHING INC"]
[null,null,"SCHOOL CREATION AND INSTALLATION"]
[null,null,"SCHOOL HEALTH CORP"]
[null,null,"SCHOOL INSTALLERS OF PA INC"]
[null,null,"SCHOOL SAFETY SOLUTION LLC"]
[null,null,"SCHOOL SPECIALTY INC"]
[null,null,"SCHROEDER, MELVIN"]
[null,null,"SCHWAB, MICHAEL"]
[null,null,"SCIENCE AND ART PRODUCTS"]
[null,null,"SCIENCE FIRST LLC"]
[null,null,"SCIENCE IMPORT INC"]
[null,null,"SCIENCEWRITERS"]
[null,null,"SCIENTIFIC DEVICE LAB"]
[null,null,"SCIENTIFIC INSTALLATIONS"]
[null,null,"SCIENTIFIC PUBLISHING LTD"]
[null,null,"SCREENFLEX PORTABLE PARTITIONS INC"]
[null,null,"SCULPTURE HOUSE INC"]
[null,null,"SEABAUGH, STACEY"]
[null,null,"SEABIRD INDUSTRY CO LTD"]
[null,null,"SEATING CONCEPTS INC"]
[null,null,"SEATING CONCEPTS LLC"]
[null,null,"SEATTLE CITY OF"]
[null,null,"SECURITECH GROUP INC"]
[null,null,"SEDIA SYSTEMS INC"]
[null,null,"SELBY FURNITURE HARDWARE CO INC"]
[null,null,"SEMPCO INC"]
[null,null,"SENNHEISER ELECTRONIC CORP"]
[null,null,"SENSATION PRODUCTS LTD"]
[null,null,"SENSATION STATIONS"]
[null,null,"SENSCOMP INC"]
[null,null,"SENSORY UNIVERSITY LLC"]
[null,null,"SEQUOIA RECORDS INC"]
[null,null,"SERVICE CASTER CORP"]
[null,null,"SEWING BY LOIS"]
[null,null,"SGN ASSOCIATES"]
[null,null,"SHALAM IMPORTS"]
[null,null,"SHAMROCK BUILDING MATERIALS INC"]
[null,null,"SHANGHAI CARTEC INDUSTRIAL AND TRADING CO LTD"]
[null,null,"SHANGHAI FORTUNE STATIONERY CO LTD"]
[null,null,"SHANNON SPECIALTY FLOORS INC"]
[null,null,"SHAPE AMERICA"]
[null,null,"SHAW INDUSTRIES INC"]
[null,null,"SHELL EDUCATIONAL PUBLISHING INC"]
[null,null,"SHELTERLOGIC CORP"]
[null,null,"SHENZHEN JUNSD IND CO LTD"]
[null,null,"SHENZHEN XFIRE TECHNOLOGY CO LTD"]
[null,null,"SHERIDAN SEATING INC"]
[null,null,"SHERIDAN WISCONSIN"]
[null,null,"SHERWIN-WILLIAMS CO"]
[null,null,"SHIELD MFG INC"]
[null,null,"SHIFFLER EQUIPMENT SALES INC"]
[null,null,"SHIGAWAKE ORGANICS LTD"]
[null,null,"SHIRLEY K'S STORAGE TRAYS LLC"]
[null,null,"SHIRLEY KS LLC"]
[null,null,"SHIZEN DESIGN"]
[null,null,"SHOCAL SOLUTIONS LLC"]
[null,null,"SHOP VAC CORP"]
[null,null,"SHOPBOT TOOLS INC"]
[null,null,"SHURE MANUFACTURING CORP"]
[null,null,"SHURTECH BRANDS LLC"]
[null,null,"SHUTTERFLY INC"]
[null,null,"SHUTTLE SYSTEM LLC"]
[null,null,"SI MFG LTD"]
[null,null,"SIAM BALL SPORT FACTORY CO"]
[null,null,"SICO AMERICA INC"]
[null,null,"SIG MFG CO"]
[null,null,"SIGMA-ALDRICH INC"]
[null,null,"SIGNORELLI OFFICE SERVICES"]
[null,null,"SILVER CREEK LEATHER CO"]
[null,null,"SILVER LEAD CO"]
[null,null,"SILVER STREET INC"]
[null,null,"SIMON AND SCHUSTER INC"]
[null,null,"SIMPLAY3 COMPANY"]
[null,null,"SIMPLE SCIENCE LLC"]
[null,null,"SIMULATION CURRICULUM CORP"]
[null,null,"SINCLAIR AND RUSH INC"]
[null,null,"SIRCHIE FINGER PRINT LABS"]
[null,null,"SISNEROS OFFICE FURNITURE"]
[null,null,"SISTERS OF ST JOSEPH LAGRANGE"]
[null,null,"SIXTY LLC"]
[null,null,"SKULLDUGGERY INC"]
[null,null,"SKUTT CERAMIC PRODUCTS INC"]
[null,null,"SKY GUIDE"]
[null,null,"SLAB DREAM LAB LLC"]
[null,null,"SLICE INC"]
[null,null,"SLT DESIGN GROUP"]
[null,null,"SMART CARTS ENTERPRISES LLC"]
[null,null,"SMART TOYS AND GAMES INC"]
[null,null,"SMART-FAB INC"]
[null,null,"SMEAD MFG CO"]
[null,null,"SMIRTHWAITE USA LLC"]
[null,null,"SMITH CARREL INC"]
[null,null,"SMITH CARREL LLC"]
[null,null,"SMITH DRAY LINE AND STORAGE CO INC"]
[null,null,"SMITH SYSTEM MFG CO"]
[null,null,"SMOOTH MOVES LLC"]
[null,null,"SOCIAL SKILL BUILDER INC"]
[null,null,"SOCIAL STUDIES SCHOOL SERVICE"]
[null,null,"SOFT TOUCH FURNITURE"]
[null,null,"SOHO CORP"]
[null,null,"SOLO-HORTON BRUSHES INC"]
[null,null,"SOMATRON CORP"]
[null,null,"SOMMERFLY LLC"]
[null,null,"SOODHALTER PLASTICS INC"]
[null,null,"SOUND VIDEO SYSTEMS OF WNY LLC"]
[null,null,"SOUND-CRAFT SYSTEMS INC"]
[null,null,"SOURCE INTL"]
[null,null,"SOURCEBOOKS INC"]
[null,null,"SOUTH DAKOTA HEAD START ASSOC"]
[null,null,"SOUTH FLORIDA FURNITURE ASSEMBLY SERVICES"]
[null,null,"SOUTH OCEAN TECHNOLOGY CO LTD"]
[null,null,"SOUTHERN ALUMINUM MFG INC"]
[null,null,"SOUTHPAW ENTERPRISES INC"]
[null,null,"SOUTHWIRE COMPANY LLC"]
[null,null,"SP RICHARDS CO"]
[null,null,"SP RICHARDS CO CANADA INC"]
[null,null,"SP RICHARDS CO FURNITURE DIVISION"]
[null,null,"SPACESHOTS INC"]
[null,null,"SPACESHOTS POSTER CO"]
[null,null,"SPAN ALASKA TRANSPORTATION LLC"]
[null,null,"SPARTAN INSTALLATIONS INC"]
[null,null,"SPASALON US"]
[null,null,"SPEC FURNITURE INC"]
[null,null,"SPECIALTY BUILDING SERVICES"]
[null,null,"SPECIALTY INSTALLATION LLC"]
[null,null,"SPECIALTY LABOR SERVICES"]
[null,null,"SPECTRAFIX"]
[null,null,"SPECTRUM AQUATICS"]
[null,null,"SPECTRUM BRANDS INC"]
[null,null,"SPECTRUM INDUSTRIES INC"]
[null,null,"SPEECH PATHOLOGY ASSOCIATES LLC"]
[null,null,"SPEED FAIR CO LTD"]
[null,null,"SPEED STACKS INC"]
[null,null,"SPEEDBALL ART PRODUCTS CO LLC"]
[null,null,"SPEEDMINTON SPORTING GOODS CORP"]
[null,null,"SPER SCIENTIFIC LTD"]
[null,null,"SPHERO INC"]
[null,null,"SPINRITE CORP"]
[null,null,"SPIRING ENTERPRISES LTD"]
[null,null,"SPIRIT MOVERS INC"]
[null,null,"SPOONER INC"]
[null,null,"SPORT BOOKS PUBLISHER"]
[null,null,"SPORTING KING CO LTD"]
[null,null,"SPORTSART AMERICA INC"]
[null,null,"SPORTSFIELD SPECIALTIES INC"]
[null,null,"SPORTSGRAPHICS"]
[null,null,"SPORTSPLAY EQUIPMENT INC"]
[null,null,"SPRAY EQUIPMENT AND SERVICE CENTER INC"]
[null,null,"SPRINGER ATLAS"]
[null,null,"SQUARE ONE PUBLISHERS"]
[null,null,"SQUIRE BOONE VILLAGE"]
[null,null,"ST LOUIS CRAFTS INC"]
[null,null,"STAEDTLER-MARS LTD"]
[null,null,"STAFAST PRODUCTS INC"]
[null,null,"STAGERIGHT CORP"]
[null,null,"STAGES LEARNING MATERIALS"]
[null,null,"STAMPEDE PRESENTATION PRODUCTS INC"]
[null,null,"STAND2LEARN"]
[null,null,"STANDARD PRINTING CO"]
[null,null,"STANISLAUS IMPORTS INC"]
[null,null,"STANLEY INDUSTRIAL AND AUTOMOTIVE LLC"]
[null,null,"STAPLES ADVANTAGE"]
[null,null,"STAPLES CONTRACT AND COMMERCIAL"]
[null,null,"STAR PRODUCTS"]
[null,null,"STAR SERVICES"]
[null,null,"STARLIGHT VIDEO LTD"]
[null,null,"STARTING BLOCKS PLUS LLC"]
[null,null,"STEAM REGION 19 INC"]
[null,null,"STECK-VAUGHN"]
[null,null,"STEEL AND WIRE PRODUCTS CO INC"]
[null,null,"STEELCASE INC"]
[null,null,"STEINER B MOORE CORP"]
[null,null,"STEINER ENTERPRISES INC"]
[null,null,"STELRAY PLASTIC PRODUCTS INC"]
[null,null,"STELZER, MARK"]
[null,null,"STEP 2 CO LLC"]
[null,null,"STEPHEN GOULD CORP"]
[null,null,"STERILITE CORP"]
[null,null,"STERLING OPTICS INC"]
[null,null,"STERMAY INDUSTRIAL LTD"]
[null,null,"STEVENS INDUSTRIES INC"]
[null,null,"STEWART SIGNS"]
[null,null,"STIKKIWORKS CO"]
[null,null,"STM BAGS LLC"]
[null,null,"STOKES PUBLISHING CO INC"]
[null,null,"STOREX IND INC"]
[null,null,"STORY TIME FELTS"]
[null,null,"STORY, MARTHA"]
[null,null,"STORYBOARD"]
[null,null,"STRATHMORE ARTIST PAPERS"]
[null,null,"STRAWBEES AB"]
[null,null,"STRIDE INC"]
[null,null,"STRIKER SPORTS LLC"]
[null,null,"STROMBERG ALLEN AND CO"]
[null,null,"STRONGSVILLE CITY OF"]
[null,null,"STU-ART SUPPLIES"]
[null,null,"STUDICA INC"]
[null,null,"STUDIO DESIGNS INC"]
[null,null,"STURGEON GLASS AND MIRROR"]
[null,null,"STX"]
[null,null,"SUDDATH RELOCATION SYSTEMS OF HOUSTON INC"]
[null,null,"SUMMERS, TIM"]
[null,null,"SUN CHEMICAL CORP"]
[null,null,"SUN COUNTRY SYSTEMS"]
[null,null,"SUN SPECIALTIES INC"]
[null,null,"SUNDANCE NEWBRIDGE"]
[null,null,"SUNTEX INTL INC"]
[null,null,"SUPER DUPER PUBLICATIONS"]
[null,null,"SUPERFICI AMERICA INC"]
[null,null,"SUPERIOR INSTALLATIONS"]
[null,null,"SUPERIOR INSTALLATIONS NETWORK INC"]
[null,null,"SUPERIOR INTL INDUSTRIES INC"]
[null,null,"SUPERIOR MFG GROUP INC"]
[null,null,"SUPERIOR OFFICE INSTALLATION"]
[null,null,"SUPERIOR OFFICE SOLUTIONS"]
[null,null,"SUREWERX USA INC"]
[null,null,"SUSAN ROSE SIMMS INC"]
[null,null,"SWAN LAKE ART STUDIO"]
[null,null,"SWIFT OPTICAL INSTRUMENTS INC"]
[null,null,"SWS VIDMAR LISTA"]
[null,null,"SYNTHETICS INTERNATIONAL INC"]
[null,null,"SYSCO BOSTON LLC"]
[null,null,"SYSTEMATIC FACILITY SOLUTIONS LLC"]
[null,null,"SYSTEMS FURNITURE INSTALLATION LLC"]
[null,null,"SYSTEMS FURNITURE INSTALLATIONS LLC"]
[null,null,"SYSTEMS OFFICE SOLUTIONS"]
[null,null,"T AND I CARPET INC"]
[null,null,"T AND M SERVICES INC"]
[null,null,"TABLEX"]
[null,null,"TACHIKARA USA INC"]
[null,null,"TAIWAN AROMA INDUSTRY CO LTD"]
[null,null,"TAKE A SWING LLC"]
[null,null,"TALICOR INC"]
[null,null,"TALTON, JOHN"]
[null,null,"TANDEM SPORT"]
[null,null,"TANGLE INC"]
[null,null,"TARA MATERIALS INC"]
[null,null,"TARKETT USA INC"]
[null,null,"TAYLOR PRECISION PRODUCTS INC"]
[null,null,"TAYLOR, THOMAS"]
[null,null,"TC SPORTS"]
[null,null,"TEACHER CREATED RESOURCES"]
[null,null,"TEACHERGEEK INC"]
[null,null,"TEC III LLC"]
[null,null,"TECH MOVE LLC"]
[null,null,"TEDCO INC"]
[null,null,"TEGU"]
[null,null,"TELEDEX INC"]
[null,null,"TENJAM ASSOCIATES LLC"]
[null,null,"TENNANT SALES AND SERVICE CO"]
[null,null,"TENNSCO CORP"]
[null,null,"TESCO INDUSTRIES LLC"]
[null,null,"TESKY, JASON"]
[null,null,"TEST PRODUCTS INTL"]
[null,null,"TESTRITE VISUAL PRODUCTS INC"]
[null,null,"TEXAS INSTRUMENTS INC"]
[null,null,"TEXAS POTTERY SUPPLY AND CLAY CO"]
[null,null,"TFH USA LTD"]
[null,null,"TG3 ELECTRONICS INC"]
[null,null,"THAMES AND KOSMOS LLC"]
[null,null,"THERAPRO INC"]
[null,null,"THERMCO PRODUCTS INC"]
[null,null,"THERMO ELECTRON SCIENTIFIC INSTRUMENTS LLC"]
[null,null,"THERMO FISHER SCIENTIFIC ASHEVILLE LLC"]
[null,null,"THINK PATENTED"]
[null,null,"THINKFUN INC"]
[null,null,"THONET"]
[null,null,"THORNTON PLASTICS"]
[null,null,"THREE RIVERS MAIL ORDER CORP"]
[null,null,"THREE-COLOR STONE MANUFACTURE LTD"]
[null,null,"THYSSENKRUPP ENGINEERED PLASTICS"]
[null,null,"TIDE RIDER INC"]
[null,null,"TIFFIN ATHLETIC MATS INC"]
[null,null,"TILO INDUSTRIES LLC"]
[null,null,"TIM BLOUGH ILLUSTRATION"]
[null,null,"TIME TIMER LLC"]
[null,null,"TJ MEYER AND ASSOCIATES INC"]
[null,null,"TL STEWART LLC"]
[null,null,"TLF GRAPHICS"]
[null,null,"TMW MEDIA GROUP"]
[null,null,"TNT INSTALLERS INC"]
[null,null,"TODDLER TABLES"]
[null,null,"TOLEDO CITY OF"]
[null,null,"TOMY INTL INC"]
[null,null,"TONER PLASTICS INC"]
[null,null,"TONIC STUDIOS ASIA LTD"]
[null,null,"TOP LAB CORP"]
[null,null,"TOPS PRODUCTS"]
[null,null,"TOSSBERG, ALLIE"]
[null,null,"TOTAL MARKETING RESOURCES LLC"]
[null,null,"TOTAL PLASTICS RESOURCES LLC"]
[null,null,"TOYSMITH"]
[null,null,"TPPS WORLD HK LTD"]
[null,null,"TRAMBLE CO INC"]
[null,null,"TRAVIS BILLE LLC"]
[null,null,"TREE BLOCKS LLC"]
[null,null,"TREND ENTERPRISES INC"]
[null,null,"TRI STATE FURNITURE INSTALLERS LLC"]
[null,null,"TRI-ED DISTRIBUTION INC"]
[null,null,"TRI-STATE CARPENTRY"]
[null,null,"TRIAID INC"]
[null,null,"TRIAL SRL"]
[null,null,"TRIOPS INC DBA TOYOPS"]
[null,null,"TRIPLE T HOSPITALITY INSTALLATION"]
[null,null,"TRISPECT INSTALLATION"]
[null,null,"TROEMNER LLC"]
[null,null,"TTS GROUP LTD"]
[null,null,"TUBE TECHNOLOGY INC"]
[null,null,"TUNG SHRIM ENTERPRISE CO LTD"]
[null,null,"TURNKEY PROJECT SERVICES"]
[null,null,"TW EVANS CORDAGE CO INC"]
[null,null,"TWO MEN AND A TRUCK"]
[null,null,"TWP INC"]
[null,null,"TX OFFICE INSTALLATION SERVICES INC"]
[null,null,"UBTECH ROBOTICS CORP"]
[null,null,"UCHIDA OF AMERICA CORP"]
[null,null,"UCS INC"]
[null,null,"UFP TECHNOLOGIES INC"]
[null,null,"UJ RAMELSON CO INC"]
[null,null,"ULINE INC"]
[null,null,"ULTIMATE BACK STORE"]
[null,null,"ULTRA OPTIX INC"]
[null,null,"ULTRA PLAY SYSTEMS INC"]
[null,null,"ULTRAFABRICS INC"]
[null,null,"UNCLE MILTON INDUSTRIES INC"]
[null,null,"UNEEDA ENTERPRIZES INC"]
[null,null,"UNI-BALL CORPORATION"]
[null,null,"UNIFAB INC"]
[null,null,"UNIQUE DELIVERIES LLC"]
[null,null,"UNIQUE POINT INDUSTRIAL CO LTD"]
[null,null,"UNISET LLC"]
[null,null,"UNITED COMB AND NOVELTY CORP"]
[null,null,"UNITED GILSONITE LABORATORIES"]
[null,null,"UNITED INSTALLATIONS GROUP LLC"]
[null,null,"UNITED LAB PLASTICS"]
[null,null,"UNITED PET GROUP"]
[null,null,"UNITED PRODUCTS AND INSTRUMENTS INC"]
[null,null,"UNITED RESTAURANT EQUIPMENT"]
[null,null,"UNITED RUBBER SUPPLY"]
[null,null,"UNITED SCIENTIFIC SUPPLIES INC"]
[null,null,"UNITED SEAL AND RUBBER CO INC"]
[null,null,"UNITED STATES PLASTIC CORP"]
[null,null,"UNITED VISUAL PRODUCTS INC"]
[null,null,"UNITED WAY OF DENTON CO"]
[null,null,"UNIVAR USA INC"]
[null,null,"UNIVERSAL COMPANIES INC"]
[null,null,"UNIVERSAL EXPORTS LLC"]
[null,null,"UNIVERSAL FLOORING INC"]
[null,null,"UNIVERSAL MOVING INC"]
[null,null,"UNIVERSAL PLASTICS"]
[null,null,"UNIVERSAL PLASTICS CORP"]
[null,null,"UNIVERSAL POLYMER AND RUBBER LTD"]
[null,null,"UNIVERSAL TOOLS AND MFG"]
[null,null,"UNIVERSITY GAMES CORP"]
[null,null,"UNIVERSITY OF CALIFORNIA REGENTS"]
[null,null,"UNIVERSITY OF ROCHESTER MEDICAL CETER"]
[null,null,"UNIVERSITY PRODUCTS INC"]
[null,null,"UPS SUPPLY CHAIN SOLUTIONS INC"]
[null,null,"UPSTATE PRINTING INC"]
[null,null,"US FOODS INC"]
[null,null,"US HINGED LLC"]
[null,null,"US SHELL INC"]
[null,null,"US SLIDE FASTENER CORP"]
[null,null,"USA SPORTS INC"]
[null,null,"USA SPORTS LLC DBA TC SPORTS"]
[null,null,"USACAPITOL"]
[null,null,"USB ONLINE INTL ELECTRONICS LTD"]
[null,null,"UTM DISTRIBUTING"]
[null,null,"UZURI KID KIDZ LLC"]
[null,null,"VALLEY PACKAGING INDUSTRIES INC"]
[null,null,"VALTECH LLC"]
[null,null,"VALUE PLASTICS INC"]
[null,null,"VAN AKEN INTERNATIONAL INC"]
[null,null,"VAN PEETE ENTERPRISES INC"]
[null,null,"VARI SALES CORP"]
[null,null,"VARIDESK LLC"]
[null,null,"VARIETY DISTRIBUTORS INC"]
[null,null,"VARIETY GLASS INC"]
[null,null,"VCOM INTL MULTIMEDIA CO"]
[null,null,"VELCRO USA INC"]
[null,null,"VELLEMAN INC"]
[null,null,"VENT-A-KILN CORP"]
[null,null,"VERITIV OPERATING CO"]
[null,null,"VERIZON"]
[null,null,"VERNIER SOFTWARE AND TECHNOLOGY LLC"]
[null,null,"VIBES LLC"]
[null,null,"VICTOR TECHNOLOGY LLC"]
[null,null,"VICTORY WHOLESALE GROUP"]
[null,null,"VIDEO PROJECT"]
[null,null,"VIDEO SERVICES GROUP INC"]
[null,null,"VIGGI CORP"]
[null,null,"VILLAGE ORIGINALS INC"]
[null,null,"VIRIDIAM LLC"]
[null,null,"VISUALZ"]
[null,null,"VIVIDBOARD"]
[null,null,"VIZIFLEX SEELS INC"]
[null,null,"VOGEL PRINTING CO INC"]
[null,null,"VOLK PACKAGING CORP"]
[null,null,"VOLLEY SPORTARTIKEL H HANUS"]
[null,null,"VOLLRATH CO LLC"]
[null,null,"VOLUNTEERS OF AMERICA GREATER NEW ORLEANS INC"]
[null,null,"VS AMERICA INC"]
[null,null,"VT INDUSTRIES INC"]
[null,null,"VWR INTERNATIONAL LLC"]
[null,null,"WABASH INSTRUMENT CORP"]
[null,null,"WADDELL DISPLAY CASES"]
[null,null,"WAI LANA PRODUCTIONS"]
[null,null,"WAL-TEK INC"]
[null,null,"WALCH EDUCATION"]
[null,null,"WALCH EDUCATION-1"]
[null,null,"WALKERS CAPITAL GROUP OF COMPANIES LTD"]
[null,null,"WALL BEDS MFG"]
[null,null,"WALL LENK CORP"]
[null,null,"WALNUT HOLLOW FARM INC"]
[null,null,"WANN CONSTRUCTION INC"]
[null,null,"WARDS SCIENCE"]
[null,null,"WARM FUZZY TOYS"]
[null,null,"WARNER STAINED GLASS"]
[null,null,"WARWICK PRODUCTS"]
[null,null,"WASHINGTON STATE OF"]
[null,null,"WASTE MANAGEMENT OF MAINE"]
[null,null,"WATER EDUCATION FOUNDATION"]
[null,null,"WATERWISE INC"]
[null,null,"WAYPOINT GEOGRAPHIC LLC"]
[null,null,"WB MANUFACTURING"]
[null,null,"WC INSTALLATIONS LLC"]
[null,null,"WEBCRAFTERS"]
[null,null,"WEGMAN ASSOCIATES INC"]
[null,null,"WEIGHTED WEARABLES LLC"]
[null,null,"WELICZKO, SCOTT"]
[null,null,"WELLINGTON FACILITY SERVICES"]
[null,null,"WENGER CORP"]
[null,null,"WENZHOU SUN STATIONERY CO LTD"]
[null,null,"WERNER CO"]
[null,null,"WES WORKS LLC"]
[null,null,"WESBELL ELECTRONICS INC"]
[null,null,"WESCO NA INC"]
[null,null,"WEST BEND"]
[null,null,"WEST EDGE SERVICES LLC"]
[null,null,"WEST TEXAS INSTALLATIONS"]
[null,null,"WESTERN CASE INC"]
[null,null,"WESTERN PSYCHOLOGICAL SERVICES"]
[null,null,"WESTERN RESERVE DISTRIBUTING INC"]
[null,null,"WESTERN STATES ENVELOPE AND LABEL"]
[null,null,"WESTINGHOUSE LIGHTING CORP"]
[null,null,"WESTROCK BOX ON DEMAND LLC"]
[null,null,"WHAM-O"]
[null,null,"WHARF INDUSTRIES PRINTING INC"]
[null,null,"WHAT IF SCIENTIFIC"]
[null,null,"WHEELAND LUMBER CO INC"]
[null,null,"WHITE OWL ENTERPRISES"]
[null,null,"WHITNEY BROTHERS CO"]
[null,null,"WHOLESALE PLAYGROUNDS LLC"]
[null,null,"WHOLESALE SPORT SUPPLY"]
[null,null,"WIDE BALL INTL LIMITED"]
[null,null,"WILBURN, ROBIN"]
[null,null,"WILDLIFE EDUCATION LTD"]
[null,null,"WILKEY, KEVIN"]
[null,null,"WILLIAMS, LARRY DON"]
[null,null,"WILLIAMSON CONTRACTING CO INC"]
[null,null,"WILSON SPORTING GOODS"]
[null,null,"WINDOW FILM DEPOT INC"]
[null,null,"WINDOW TINT SPECIALISTS"]
[null,null,"WINNERS QUILT LLC"]
[null,null,"WINTER WOODS INC"]
[null,null,"WIRE WINDERS INC"]
[null,null,"WISCONSIN ALUMINUM FOUNDRY CO INC"]
[null,null,"WISCONSIN HEAD START ASSOCIATION"]
[null,null,"WITT INDUSTRIES"]
[null,null,"WITZEND WORKSHOP LLC"]
[null,null,"WIZARD WALL INC"]
[null,null,"WOLF-GORDON INC"]
[null,null,"WOLTERS KLUWER"]
[null,null,"WOLVERINE BIOLOGICAL CENTER"]
[null,null,"WONDER WORKSHOP INC"]
[null,null,"WOOD DESIGNS"]
[null,null,"WOODEN MALLET INC"]
[null,null,"WOODHOUSE, ROBERT"]
[null,null,"WOODSTOCK LINE CO"]
[null,null,"WOODWIND AND BRASSWIND INC"]
[null,null,"WOOL NOVELTY CORP"]
[null,null,"WORKMAN PUBLISHING CO"]
[null,null,"WORLD CLASS OFFICE INSTALLERS INC"]
[null,null,"WORLD FOOTBAG INC"]
[null,null,"WORLD MICRO"]
[null,null,"WORLD OF BEADS"]
[null,null,"WURTH BAER SUPPLY CO"]
[null,null,"WYNIT DISTRIBUTION LLC"]
[null,null,"WYOMING INSTALL GROUP"]
[null,null,"XLR8 SERVICES LLC"]
[null,null,"YAMASAKI SPORTS CO LTD"]
[null,null,"YANGZHOU JIANGHAI BRUSH CO LTD"]
[null,null,"YASUTOMO INC"]
[null,null,"YELLOW DOOR US LLC"]
[null,null,"YIWU JIEKANG MEDICAL ARTICLES CO LTD"]
[null,null,"YIWU MENGQIAN TOY CO LTD"]
[null,null,"YOSEM SIXTY NINE INTL CO LTD"]
[null,null,"YOUNG NATURALIST CO"]
[null,null,"YOUNG SCIENTIST CLUB"]
[null,null,"YUAN CHI OVERSEAS LTD"]
[null,null,"ZANER-BLOSER INC"]
[null,null,"ZEBRA PEN CORP"]
[null,null,"ZENG UE INTERNATIONAL CO LTD"]
[null,null,"ZEPHYR LOCK"]
[null,null,"ZHEJIANG BAIYI STATIONERY CO LTD"]
[null,null,"ZHUZHOU SUCHENGLAN TRADE CO LTD"]
[null,null,"ZION NATL PARK FOREVER PROJECT"]
[null,null,"ZKTECO USA LLC"]
[null,null,"ZUCKER FEATHER PRODUCTS"]
[null,null,"[DELETE]"]
[null,null,"[NULL]"]